Workbook

Sheet Indice
B1: Sociedad: | C1: GAS CORONA S.A.E.C.A.
S2: 1 | T2: Enero
S3: 2 | T3: Febrero
S4: 3 | T4: Marzo
S5: 4 | T5: Abril
A6: Fecha Presentación: | B6: 2021-09-30 | S6: 5 | T6: Mayo
S7: 6 | T7: Junio
S8: 7 | T8: Julio
C9: INDICE | D9: REF. | S9: 8 | T9: Agosto
B10: Informacion General | S10: 9 | T10: Septiembre
C11: Descripción de la naturaleza y del negocio de la Sociedad | D11: Nota 1 | S11: 10 | T11: Octubre
C12: Resumen de las principales políticas contables | D12: Nota 2 | S12: 11 | T12: Noviembre
B13: Balance General | D13: BG | S13: 12 | T13: Diciembre
C14: Efectivo y equivalente de efectivo | D14: Nota 3
C15: Inversiones temporales | D15: Nota 4
C16: Cuentas por cobrar comerciales | D16: Nota 5
C17: Otros créditos | D17: Nota 6
C18: Cuentas por cobrar comerciales | D18: Nota 5
C19: Inventarios | D19: Nota 7
C20: Inversión en asociadas | D20: Nota 8
C21: Propiedades, planta y equipo | D21: Nota 9
C22: Activos disponibles para la venta | D22: Nota 10
C23: Activos intangibles | D23: Nota 11
C24: Goodwill | D24: Nota 12
C25: Cuentas por pagar comerciales | D25: Nota 13
C26: Préstamos a corto plazo | D26: Nota 14
C27: Porción corriente de la deuda a largo plazo | D27: Nota 15
C28: Remuneraciones y cargas sociales a pagar | D28: Nota 16
C29: Impuestos a pagar | D29: Nota 17
C30: Provisiones | D30: Nota 18
C31: Otros pasivos corrientes | D31: Nota 19
C32: Prestamos a largo plazo | D32: Nota 14
C33: Otros pasivos no corrientes | D33: Nota 19
C34: Capital integrado | D34: Nota 20
C35: Reserva de revalúo | D35: Nota 21
C36: Reserva legal | D36: Nota 21
C37: Reservas estatutarias | D37: Nota 21
C38: Reservas facultativas | D38: Nota 21
C39: Diferencia transitoria por conversión | D39: Nota 22
C40: Resultados acumulados | D40: Nota 23
C41: Interés minoritario | D41: Nota 24
B42: Estado de Resultados | D42: ER
C43: Ventas | D43: Nota 25
C44: Costo de ventas | D44: Nota 26
C45: Gastos de ventas | D45: Nota 27
C46: Gastos administrativos | D46: Nota 27
C47: Otros ingresos y gastos operativos | D47: Nota 28
C48: Ingresos financieros - neto | D48: Nota 29
C49: Gastos financieros - neto | D49: Nota 29
C50: Resultado de inversiones en asociadas | D50: Nota 30
C51: Resultado participación minoritaria | D51: Nota 31
C52: Impuesto a la renta | D52: Nota 32
C53: Resultado extraordinario neto de impuesto a la renta | D53: Nota 33
C54: Resultado sobre actividades discontinuadas neto de impuesto a la renta | D54: Nota 34
C55: Utilidad/(Pérdida) neta del año | D55: Nota 35
C56: Utilidad neta por acción ordinaria | D56: Nota 35
B57: Estado de Evolución del Patrimonio Neto | D57: EVPN
B58: Estado de Flujos de Efectivo | D58: EFE
B59: Otras Notas de los Estados Financieros
C60: Activos gravados | D60: Nota 36
C61: Contingencias y compromisos | D61: Nota 37
C62: Impuesto diferido | D62: Nota 38
C63: Hechos posteriores | D63: Nota 39
C64: Saldos y transacciones con partes relacionadas | D64: Nota 40

Sheet BG
D1: =Indice!C1 -> GAS CORONA S.A.E.C.A. | E1: Indice
A7: BALANCE GENERAL
A8: =IFERROR(IF(Indice!B6="","Al dia... de mes… de año 2XX2…","Al "&DAY(Indice!B6)&" de "&VLOOKUP(MONTH(Indice!B6),Indice!S:T,2,0)&" de "&YEAR(Indice!B6)),"Al dia... de mes… de año 2XX2…") -> Al 30 de Septiembre de 2021
A9: (Expresado en guaraníes)
E11: Nota | F11: =IFERROR(IF(Indice!B6="","2XX2",YEAR(Indice!B6)),"2XX2") -> 2021 | G11: =IFERROR(YEAR(Indice!B6-365),"2XX1") -> 2020
B12: ACTIVOS
B13: Activos Corrientes
C14: Efectivo y equivalente de efectivo | E14: 3 | F14: ='Nota 3'!C28 -> 6003101622 | G14: ='Nota 3'!D28 -> 28663887840
C15: Inversiones temporales | E15: 4 | F15: ='Nota 4'!B18 -> 0 | G15: ='Nota 4'!C18 -> 0
C16: Cuentas por cobrar comerciales | E16: 5 | F16: ='Nota 5'!C31 -> 16471190491 | G16: ='Nota 5'!D31 -> 18157340750
C17: Otros créditos | E17: 6 | F17: ='Nota 6'!B21 -> 6486987190 | G17: ='Nota 6'!C21 -> 3862788295
C18: Inventarios | E18: 7 | F18: ='Nota 7'!B19 -> 30522654337 | G18: ='Nota 7'!C19 -> 23413365409
C19: Total activos corrientes | F19: =SUM(F14:F18) -> 59483933640 | G19: =SUM(G14:G18) -> 74097382294
B20: Activos no Corrientes
C21: Otros créditos | E21: 6 | F21: ='Nota 6'!F18 -> 0 | G21: ='Nota 6'!G18 -> 0
C22: Cuentas por cobrar comerciales | E22: 5 | F22: ='Nota 5'!C58 -> 0 | G22: ='Nota 5'!D58 -> 0
C23: Inversión en asociadas | E23: 8 | F23: ='Nota 8'!B8 -> 0 | G23: ='Nota 8'!C8 -> 0
C24: Propiedades, planta y equipo/Bienes de uso, neto | E24: 9 | F24: ='Nota 9'!L35 -> 41292885090 | G24: ='Nota 9'!M35 -> 36638573867
C25: Activos disponibles para la venta | E25: 10 | F25: ='Nota 10'!B23 -> 10112318839 | G25: ='Nota 10'!C23 -> 10579687168
C26: Activos intangibles | E26: 11 | F26: ='Nota 11'!B13 -> 836810362 | G26: ='Nota 11'!C13 -> 696378574
C27: Goodwill | E27: 12 | F27: ='Nota 12'!B11 -> 0 | G27: ='Nota 12'!C11 -> 0
C28: Total activos no corrientes | F28: =SUM(F21:F27) -> 52242014291 | G28: =SUM(G21:G27) -> 47914639609
B29: Total Activos | F29: =+F19+F28 -> 111725947931 | G29: =+G19+G28 -> 122012021903
B30: PASIVOS Y PATRIMONIO NETO
B31: Pasivos corrientes | F31: -1
C32: Cuentas por pagar comerciales | E32: 13 | F32: ='Nota 13'!D17 -> 21636594750 | G32: ='Nota 13'!E17 -> 20182201308
C33: Préstamos a corto plazo | E33: 14 | F33: ='Nota 14'!E29 -> 2033383561 | G33: ='Nota 14'!K29 -> 2330534259
C34: Porción corriente de la deuda a largo plazo | E34: 15 | F34: ='Nota 15'!B15 -> 0 | G34: ='Nota 15'!C15 -> 0
C35: Remuneraciones y cargas sociales a pagar | E35: 16 | F35: ='Nota 16'!B19 -> 1468286904 | G35: ='Nota 16'!C19 -> 1421047125
C36: Impuestos a pagar | E36: 17 | F36: ='Nota 17'!B17 -> 53216755 | G36: ='Nota 17'!C17 -> 94765015
C37: Provisiones | E37: 18 | F37: ='Nota 18'!B18 -> 8282888389 | G37: ='Nota 18'!C18 -> 6062068432
C38: Otros pasivos corrientes | E38: 19 | F38: ='Nota 19'!B17 -> 1713791642 | G38: ='Nota 19'!C17 -> 1716629332
C39: Total Pasivos Corrientes | F39: =+F32+F33+F34+F35+F36+F37+F38 -> 35188162001 | G39: =SUM(G32:G38) -> 31807245471
B40: Pasivos no corrientes
C41: Préstamos a largo plazo | E41: 14 | F41: ='Nota 14'!E50 -> 12275671233 | G41: ='Nota 14'!K50 -> 14000000000
C42: Cuentas por pagar comerciales | E42: 13 | F42: ='Nota 13'!D26 -> 516042093 | G42: ='Nota 13'!E25 -> 76383554
C43: Otros pasivos no corrientes | E43: 19 | F43: ='Nota 19'!F17 -> 0 | G43: ='Nota 19'!G17 -> 0
C44: Total pasivos no corrientes | F44: =SUM(F41:F43) -> 12791713326 | G44: =SUM(G41:G43) -> 14076383554
B46: Total Pasivos | F46: =+F39+F44 -> 47979875327 | G46: =+G39+G44 -> 45883629025
B47: Patrimonio Neto
C48: Capital integrado | E48: 20 | F48: ='Nota 20'!B14 -> 50000000000 | G48: ='Nota 20'!C14 -> 49200000000
C49: Reserva de revalúo | E49: 21 | F49: =' Nota 21'!B11 -> 0 | G49: =' Nota 21'!C11 -> 0
C50: Reserva legal | E50: 21 | F50: =' Nota 21'!B15 -> 8151731798 | G50: =' Nota 21'!C15 -> 6931012994
C51: Reservas estatutarias | E51: 21 | F51: =' Nota 21'!B19 -> 0 | G51: =' Nota 21'!C19 -> 0
C52: Reservas facultatitvas | E52: 21 | F52: =' Nota 21'!B23 -> 0 | G52: =' Nota 21'!C23 -> 0
C53: Diferencia transitoria por conversión | E53: 22 | F53: ='Nota 22'!B8 -> 0 | G53: ='Nota 22'!C8 -> 0
C54: Resultados acumulados | E54: 23 | F54: ='Nota 23'!B15 -> 5594340806 | G54: ='Nota 23'!C15 -> 19997379884
C55: Subtotal | F55: =SUM(F48:F54) -> 63746072604 | G55: =SUM(G48:G54) -> 76128392878
C56: Interés minoritario | E56: 24 | F56: ='Nota 24'!B8 -> 0 | G56: ='Nota 24'!C8 -> 0
B57: Total Patrimonio Neto | F57: =F55 -> 63746072604 | G57: =G55 -> 76128392878
B58: Total Pasivos y Patrimonio Neto | F58: =+F46+F57 -> 111725947931 | G58: =+G46+G57 -> 122012021903
B60: Las notas que se acompañan forman parte integrante de estos estados.
D66: Sra Luisa Isabel Schaerer de Pallares | E66: Sra. Maria Celeste Pallares Viveros
D67: Presidente | F67: Vicepresidente
C72: Dr. Raul Fernando Vargas | E72: C.P. Gloria Elizabeth Flecha Benitez
D73: Sindico Titular | F73: Contador

Sheet ER
A1: =Indice!C1 -> GAS CORONA S.A.E.C.A. | B1: Indice | D1: =ER!A4 -> 
A7: ESTADO DE RESULTADOS
A8: =IFERROR(IF(Indice!B6="","Al dia... de mes… de año 2XX2…","Al "&DAY(Indice!B6)&" de "&VLOOKUP(MONTH(Indice!B6),Indice!S:T,2,0)&" de "&YEAR(Indice!B6)),"Al dia... de mes… de año 2XX2…") -> Al 30 de Septiembre de 2021
A9: Comparativo con igual período del año anterior
A10: (Expresado en guaraníes)
B12: Nota | C12: =IFERROR(IF(Indice!B6="","2XX2",YEAR(Indice!B6)),"2XX2") -> 2021 | D12: =IFERROR(YEAR(Indice!B6-365),"2XX1") -> 2020
A13: Ventas | B13: 25 | C13: ='Nota 25'!B27 -> 205672386225 | D13: ='Nota 25'!C27 -> 189001669458
A14: Costo de ventas | B14: 26 | C14: ='Nota 26'!B22 -> -166539151254 | D14: ='Nota 26'!C22 -> -135437424710
A15: Utilidad bruta | C15: =C13+C14 -> 39133234971 | D15: =D13+D14 -> 53564244748
A16: Gastos de ventas | B16: 27 | C16: =-'Nota 27'!B35 -> -21243250560 | D16: =-'Nota 27'!E35 -> -22722796090
A17: Gastos administrativos | B17: 27 | C17: =-'Nota 27'!C35 -> -12204262432 | D17: =-'Nota 27'!F35 -> -11795666016
A18: Otros ingresos y gastos operativos | B18: 28 | C18: ='Nota 28'!B15 -> 1272243249 | D18: ='Nota 28'!C15 -> 1718810880
A19: Resultado operativo | C19: =C15+C16+C17+C18 -> 6957965228 | D19: =D15+D16+D17+D18 -> 20764593522
A20: Ingresos financieros - neto | B20: 29 | C20: ='Nota 29'!B14 -> 587680775 | D20: ='Nota 29'!C14 -> 771590786
A21: Gastos financieros - neto | B21: 29 | C21: =-'Nota 29'!F14 -> -1951305197 | D21: =-'Nota 29'!G14 -> -1538804424
A22: Subtotal | C22: =SUM(C20:C21) -> -1363624422 | D22: =SUM(D20:D21) -> -767213638
A23: Resultado de inversiones en asociadas | B23: 30 | C23: ='Nota 30'!B13 -> 0 | D23: ='Nota 30'!C13 -> 0
A24: Resultados ordinarios antes de impuesto a la renta y participación minoritaria | C24: =C19+C22 -> 5594340806 | D24: =D19+D22 -> 19997379884
A25: Resultado participación minoritaria | B25: 31 | C25: ='Nota 31'!B12 -> 0 | D25: ='Nota 31'!C12 -> 0
A26: Resultado ordinario antes del impuesto a la renta
A27: Impuesto a la renta | B27: 32 | C27: ='Nota 32'!B14 -> 0 | D27: ='Nota 32'!C14 -> 0
A28: Resultado neto de actividades ordinarias | C28: =C26+C27 -> 0 | D28: =D26+D27 -> 0
A29: Resultado extraordinario neto de impuesto a la renta | B29: 33 | C29: ='Nota 32'!B14 -> 0 | D29: ='Nota 32'!C14 -> 0
A30: Resultado sobre actividades discontinuadas neto de impuesto a la renta | B30: 34 | C30: ='Nota 34'!B12 -> 0 | D30: ='Nota 34'!C12 -> 0
A31: Utilidad/(Pérdida) neta del año | C31: =C28+C29+C30 -> 0 | D31: =D28+D29+D30 -> 0
A32: Utilidad neta por acción ordinaria | B32: 35 | C32: ='Nota 35'!B10 -> 1118868.161 | D32: ='Nota 35'!C10 -> 4064508.107
A35: Las notas que se acompañan forman parte integrante de estos estados.
A41: =BG!D66 -> Sra Luisa Isabel Schaerer de Pallares | C41: =BG!E66 -> Sra. Maria Celeste Pallares Viveros
A42: =BG!D67 -> Presidente | C42: =BG!F67 -> Vicepresidente
A50: =BG!C72 -> Dr. Raul Fernando Vargas | C50: =BG!E72 -> C.P. Gloria Elizabeth Flecha Benitez
A51: =BG!D73 -> Sindico Titular | C51: =BG!F73 -> Contador

Sheet EVPN
A1: =Indice!C1 -> GAS CORONA S.A.E.C.A. | H1: Indice
F4: ESTADO DE EVOLUCIÓN DEL PATRIMONIO NETO
H5: =IFERROR(IF(Indice!B6="","Al dia... de mes… de año 2XX2…","Al "&DAY(Indice!B6)&" de "&VLOOKUP(MONTH(Indice!B6),Indice!S:T,2,0)&" de "&YEAR(Indice!B6)),"Al dia... de mes… de año 2XX2…") -> Al 30 de Septiembre de 2021
A6: Comparativo con igual periodo del año anterior
A7: (Expresado en guaraníes)
C10: Aporte de los propietarios | L10: Ganancias reservadas
C11: Capital suscripto e integrado | D11: Aporte para | F11: Primas de emisión | H11: Reserva de revalúo | J11: Reserva de revalúo técnico | L11: Reserva legal | N11: Reserva facultativa | P11: Resultados acumulados | R11: Interes Minoritario | T11: Total
D12: aumento de capital | P12: Total
A14: =IFERROR(IF(Indice!B6="","Saldo al .. de de 20X0 ","Saldo al "&DAY(Indice!B6)&" de "&VLOOKUP(MONTH(Indice!B6),Indice!S:T,2,0)&" de "&YEAR(Indice!B6-730)),"Saldo al .. de de 20X0 ") -> Saldo al 30 de Septiembre de 2019 | C14: 48000000000 | D14: 0 | F14: 0 | G14: 0 | H14: 1052061213 | J14: 0 | L14: 6931012994 | N14: 0 | P14: 11887053782 | T14: =SUM(C14:P14) -> 67870127989
A15: Saldo al 31 de diciembre de 2019 | C15: 48000000000 | H15: 1052061213 | L15: 6931012994 | P15: 24614338753 | T15: 80597412960
A16: Saldo reestructurado | C16: =C15 -> 48000000000 | D16: =D14 -> 0 | E16: 0 | F16: 0 | G16: 0 | H16: =H15 -> 1052061213 | I16: 0 | J16: 0 | K16: 0 | L16: =L15 -> 6931012994 | M16: 0 | N16: 0 | O16: 0 | P16: =P15 -> 24614338753 | T16: 80597412960
A17: Distribución de dividendos s/Acta de Asamblea General Ordinaria N° 458/20 de fecha 19/06/2020 | P17: -24466399966 | T17: -24466399966
A18: Integración del capital social | T18: 0
A19: Aumento del capital social s/Acta de Asamblea General Ordinaria N° 458 de fecha 19/06/2020 | C19: 1200000000 | H19: -1052061213 | L19: 0 | P19: -147938787 | T19: 0
A20: Revalúo de activos fijos | C20: 0 | H20: 0 | T20: 0
A21: Revalúo técnico | T21: 0
A22: Resultado del año | P22: 19997379884 | T22: 19997379884
A24: =IFERROR(IF(Indice!B6="","Saldo al .. de de 20X1 ","Saldo al "&DAY(Indice!B6)&" de "&VLOOKUP(MONTH(Indice!B6),Indice!S:T,2,0)&" de "&YEAR(Indice!B6-365)),"Saldo al .. de de 20X1 ") -> Saldo al 30 de Septiembre de 2020 | C24: =C16+C17+C18+C19+C21+C22+C20 -> 49200000000 | D24: =SUM(D14:D22) -> 0 | F24: =F16+F17+F18+F19+F21+F22+F20 -> 0 | G24: =SUM(G14:G23) -> 0 | H24: =H16+H17+H18+H19+H21+H22+H20 -> 0 | J24: =J16+J17+J18+J19+J21+J22+J20 -> 0 | L24: =L16+L17+L18+L19+L21+L22+L20 -> 6931012994 | N24: =N16+N17+N18+N19+N21+N22+N20 -> 0 | P24: =P16+P17+P18+P19+P21+P22+P20 -> 19997379884 | R24: =R16+R17+R18+R19+R21+R22+R20 -> 0 | T24: =T16+T17+T18+T19+T21+T22+T20 -> 76128392878
A25: Saldo al 31 de diciembre de 2020 | C25: 49200000000 | L25: 8151731798 | P25: 23193657282
A26: Saldo reestructurado | C26: =C25 -> 49200000000 | L26: =L25 -> 8151731798 | P26: =P25 -> 23193657282 | T26: =C26+L26+P26 -> 80545389080
A27: Distribución de dividendos s/Acta de Asamblea General Ordinaria N° 477/21 de fecha 16/04/2021 | P27: -22393657282 | T27: =SUM(C27:P27) -> -22393657282
A28: Integración del capital social | T28: 0
A29: Capitalizacion de dividendos s/Acta de Asamblea General Ordinaria N° 477/21 de fecha 16/04/2021 | C29: 800000000 | H29: 0 | P29: -800000000 | T29: 0
A30: Revalúo de activos fijos | T30: 0
A31: Desafectación de la reserva de revalúo técnico | T31: 0
A32: Resultado del año | P32: 5594340806 | T32: 5594340806
A34: =IFERROR(IF(Indice!B6="","Saldo al .. de de 20X2 ","Saldo al "&DAY(Indice!B6)&" de "&VLOOKUP(MONTH(Indice!B6),Indice!S:T,2,0)&" de "&YEAR(Indice!B6)),"Saldo al .. de de 20X2 ") -> Saldo al 30 de Septiembre de 2021 | C34: =C24+C27+C30+C31+C32+C29 -> 50000000000 | D34: 0 | E34: 0 | F34: 0 | G34: 0 | H34: 0 | I34: 0 | J34: 0 | K34: 0 | L34: =L26+L27 -> 8151731798 | M34: =M24+M27+M30+M31+M32+M29 -> 0 | N34: =N24+N27+N30+N31+N32+N29 -> 0 | O34: =O24+O27+O30+O31+O32+O29 -> 0 | P34: =P26+P27+P29+P32 -> 5594340806 | Q34: =Q24+Q27+Q30+Q31+Q32+Q29 -> 0 | R34: =R24+R27+R30+R31+R32+R29 -> 0 | T34: =T26+T27+T32 -> 63746072604
A35: Las notas que se acompañan forman parte integrante de estos estados.
A39: =BG!D66 -> Sra Luisa Isabel Schaerer de Pallares | C39: =BG!E66 -> Sra. Maria Celeste Pallares Viveros | J39: =BG!C72 -> Dr. Raul Fernando Vargas | N39: =BG!E72 -> C.P. Gloria Elizabeth Flecha Benitez
A40: =BG!D67 -> Presidente | C40: =BG!F67 -> Vicepresidente | J40: =BG!D73 -> Sindico Titular | N40: =BG!F73 -> Contador

Sheet EFE
A1: =Indice!C1 -> GAS CORONA S.A.E.C.A.
A5: ESTADO DE FLUJOS DE EFECTIVO (Método directo)
A6: =IFERROR(IF(Indice!B6="","Al dia... de mes… de año 2XX2…","Al "&DAY(Indice!B6)&" de "&VLOOKUP(MONTH(Indice!B6),Indice!S:T,2,0)&" de "&YEAR(Indice!B6)),"Al dia... de mes… de año 2XX2…") -> Al 30 de Septiembre de 2021
A7: Comparativo con igual periodo del año anterior
A8: (Expresado en guaraníes)
B11: =IFERROR(IF(Indice!B6="","2XX2",YEAR(Indice!B6)),"2XX2") -> 2021 | C11: =IFERROR(YEAR(Indice!B6-365),"2XX1") -> 2020
A13: FLUJO DE EFECTIVO DE ACTIVIDADES OPERATIVAS
A14: Cobranzas efectuadas a clientes | B14: 39201346622 | C14: 43383810842
A15: Pagos efectuados a proveedores y empleados | B15: -34581656889 | C15: -40380972796
A16: Efectivo generado por las operaciones | B16: 679807388 | C16: 540504083
A17: Intereses pagados | B17: -1456870687 | C17: -1114524060
A18: Otros ingresos y (egresos) - neto | B18: -793220533 | C18: 1085820077
A19: Pagos de impuesto a la renta | B19: -569439914 | C19: 238391392
A20: Flujo neto de efectivo de actividades operativas | B20: =SUM(B14:B19) -> 2479965987 | C20: =SUM(C14:C19) -> 3753029538
A22: FLUJO DE EFECTIVO DE ACTIVIDADES DE INVERSIÓN
A23: Adquisición de bienes de uso | B23: -3574024207 | C23: 6975596732
A24: Adquisición de bienes Curtiembre - fideicomitida
A25: Ventas de activos fijos | B25: 0 | C25: 0
A26: Ventas de bienes de uso | B26: 0 | C26: 0
A27: Intereses cobrados sobre inversiones | B27: 0 | C27: 0
A28: Aquisición de inversiones | B28: 0 | C28: 0
A29: Flujo neto de efectivo de actividades de inversión | B29: =SUM(B23:B28) -> -3574024207 | C29: =SUM(C23:C28) -> 6975596732
A31: FLUJO DE EFECTIVO DE ACTIVIDADES DE FINANCIACIÓN
A32: (Disminución) Incremento de préstamos | B32: -2512405169 | C32: 17047365151
A33: Aportes de capital recibidos
A34: Dividendos pagados | B34: -19197379884 | C34: -20757255207
A35: Flujo neto de efectivo de actividades de financiamiento | B35: =B32+B33+B34 -> -21709785053 | C35: =C32+C33+C34 -> -3709890056
A37: (Disminución) Incremento neto de efectivo | B37: -22803843273 | C37: 7018736214
A38: Efecto estimado de la diferencia de cambio sobre el saldo de efectivo | B38: 143057055 | C38: 439797142
A39: Efectivo al principio del año | B39: 28663887840 | C39: 21205354484
A41: Efectivo al final del periodo | B41: =+SUM(B37:B39) -> 6003101622 | C41: =+SUM(C37:C39) -> 28663887840
A43: Las notas que se acompañan forman parte integrante de estos estados.
A50: =BG!D66 -> Sra Luisa Isabel Schaerer de Pallares | B50: =BG!E66 -> Sra. Maria Celeste Pallares Viveros
A51: =BG!D67 -> Presidente | B51: =BG!F67 -> Vicepresidente
A58: =BG!C72 -> Dr. Raul Fernando Vargas | B58: =BG!E72 -> C.P. Gloria Elizabeth Flecha Benitez
A59: =BG!D73 -> Sindico Titular | B59: =BG!F73 -> Contador

Sheet Nota1
A1: =Indice!C1 -> GAS CORONA S.A.E.C.A. | I1: BG
A4: NOTAS A LOS ESTADOS FINANCIEROS CORRESPONDIENTES AL PERIODO TERMINADO AL 30 /09/2021
A5: Presentadas en forma comparativa con el periodo terminado | F5: =IFERROR("Al "&DAY(Indice!B6)&" de "&VLOOKUP(MONTH(Indice!B6),Indice!S:T,2,0)&" de "&YEAR(Indice!B6-365),"Al dia... de mes… de año 2XX1…") -> Al 30 de Septiembre de 2020
A7: NOTA 1 – DESCRIPCIÓN DE LA NATURALEZA Y DEL NEGOCIO DE LA COMPAÑÍA
A8: Gas Corona Sociedad Anónima fue constituido por Escritura Pública Nº 61
A9: de fecha 4 de agosto de 1971, pasada ante el Escribano Don José Livio
A10: Lezcano. Sus Estatutos Sociales fueron aprobados y reconocida su Personería
A11: Jurídica por Decreto del Poder Ejecutivo de la Nación Nº 22.810 de fecha 10
A12: de noviembre de 1971 e inscripto en el Registro Público de Comercio bajo el
A13: Nº 549, página 137 y siguientes, de fecha 25 de noviembre de 1971.
A15: Las modificaciones del Estatuto Social han sido las siguientes:
A17: Primera Modificación de los Estatutos Sociales: Por aumento de capital,
A18: según Decreto del Poder Ejecutivo de la Nación Nº 14.778 del 9 de mayo de
A19: 1975 e inscripta en el Registro Público de Comercio, bajo el número 171, de
A20: fecha 25 de Mayo de 1975, conforme en la Escritura Pública Nº 69
A21: protocolizada ante el Escribano Gervasio Recalde, en fecha 18 de marzo de
A22: 1975.
A24: Segunda Modificación de los Estatutos Sociales: Por aumento de Capital,
A25: Escritura Pública Nº 14 de fecha 4 de setiembre de 1986, autorizada por el
A26: Escribano Público Octavio Godoy Cáceres aprobada por Decreto del Poder
A27: Ejecutivo Nº 18.996 de fecha 29 de diciembre de1986 e inscripta en el Registro
A28: Público de Comercio, bajo el Nº 114, de fecha 4 de setiembre de 1986.
A30: Tercera Modificación de los Estatutos Sociales: Por Escritura Pública Nº 295
A31: de fecha 3 de octubre de 1996 autorizada por la Escribana Pública Carmen
A32: Estigarribia de Fassanello. Inscripta en el Registro de Personas Jurídicas y
A33: Asociaciones, bajo el Nº 648 y en el folio 6948, Serie B, en fecha 21 de
A34: noviembre de 1996, y en Registro Público de Comercio con el Nº 896 – Serie
A35: C – Folio 8240 del 25 de Noviembre de 1996.
A37: Cuarta Modificación de los Estatutos Sociales: Escritura de Aumento de
A38: Capital Social de la firma Gas Corona S.A. por Escritura Pública Nº 19 del 10
A39: de setiembre de 2003 ante la Escribana Carmen Estigarribia de Fassanello e
A40: inscripto en el Registro de Personas Jurídicas y Asociaciones con el Nº 537 –
A41: Folio 5492 y siguientes - Serie D del 4 de noviembre de 2003 y en el Registro
A42: Público de Comercio con el Nº 435 – Folio 435 – Folio 4356 y siguientes Serie
A43: C el 6 de noviembre de 2003.
A45: Quinta Modificación de los Estatutos Sociales: Escritura de Aumento de
A46: Capital y transformación de la firma Gas Corona S.A, en Emisora de Capital
A47: Abierto por Escritura Pública Nº 10 de fecha 27 de mayo de 2005 ante la
A48: Escribana Carmen Estigarribia de Fassanello e inscripto en el Registro de
A49: Personas Jurídicas y Asociaciones con el Nº 225 – Folio 2995 y siguientes –
A50: Serie A el 26 de julio de 2005 y en el Registro Público de Comercio con el Nº
A51: 241 – Folio 3552 y siguientes – Serie A el 26 de julio de 2005.
A53: Sexta Modificación de los Estatutos Sociales: Escritura de Aumento de
A54: Capital Social de la firma Gas Corona S.A.E.C.A. por Escritura Pública Nº 84
A55: del 14 de junio de 2007 ante la Escribana Carmen Estigarribia de Fassanello e
A56: inscripto en el Registro de Personas Jurídicas y Asociaciones con el Nº 283 –
A57: Folio 3239 y siguientes - Serie A del 4 de setiembre de 2007 y en el Registro
A58: Público de Comercio con el Nº 544 - Folio 5648 y siguientes Serie A del 4 de
A59: setiembre de 2007. Escritura de Emisión de Acciones dentro del Capital
A65: Social de la firma Gas Corona S.A.E.C.A. por Escritura Pública Nº 85 del 14
A66: de junio de 2007 ante la Escribana Carmen Estigarribia de Fassanello e
A67: inscripto en el Registro Público de Comercio con el Nº 325 - Folio 5233 y
A68: siguientes Serie C del 6 de setiembre de 2007.
A70: Séptima Modificación de los Estatutos Sociales: Escritura de Aumento de
A71: Capital Social y Emisión de Acciones dentro del Capital Social de la firma
A72: Gas Corona S.A.E.C.A. por Escritura Pública Nº 138 del 21 de agosto de 2008
A73: ante la Escribana Carmen Paredes Cabrera e inscripto en el Registro de
A74: Personas Jurídicas y Asociaciones con el Nº 653– Folio 6355 y siguientes -
A75: Serie C del 25 de setiembre de 2008 y en el Registro Público de Comercio con
A76: el Nº 734 - Folio 6612 y siguientes Serie E del 25 de setiembre de 2008.
A78: Protocolización Acta de Asamblea: Escritura de Protocolización por
A79: integración del Capital Social de la firma Gas Corona S.A.E.C.A. por
A80: Escritura Pública Nº 19 del 16 de marzo de 2010 ante la Escribana Carmen
A81: Paredes Cabrera e inscripto en el Registro de Personas Jurídicas y
A82: Asociaciones con el Nº 69 – Folio 776 y siguientes - Serie G del 07 de abril de
A83: 2010 y en el Registro Público de Comercio con el Nº 191 - Folio 2204 y
A84: siguientes - Serie F del 7 de abril de 2010.
A86: Octava Modificación de los Estatutos Sociales: Escritura de Aumento de
A87: Capital Social y Emisión de Acciones dentro del Capital Social de la firma
A88: Gas Corona S.A.E.C.A. por Escritura Pública Nº 195 del 22 de julio de 2010
A89: ante la Escribana Carmen Paredes Cabrera e inscripto en el Registro de
A90: Personas Jurídicas y Asociaciones con el Nº 423 – Folio 5203 y siguientes -
A91: Serie B del 1 de setiembre de 2010 y en el Registro Público de Comercio con
A92: el Nº 456 - Folio 4004 y siguientes - Serie C del 1 de setiembre de 2010.
A94: Protocolización Acta de Asamblea: Escritura de Protocolización por
A95: integración el Capital Social de la firma Gas Corona S.A.E.C.A. por Escritura
A96: Pública Nº 83 del 31 de agosto de 2011 ante la Escribana Carmen Paredes
A97: Cabrera e inscripto en el Registro Público de Comercio Sección Contratos
A98: bajo el Nº 407- Folio 4340 y siguientes - Serie H del 12 de septiembre de 2011.
A100: Novena Modificación de los Estatutos Sociales: Escritura de Aumento de
A101: Capital Social y Emisión de Acciones dentro del Capital Social de la firma
A102: Gas Corona S.A.E.C.A. por Escritura Pública Nº 17 del 05 de octubre de 2012
A103: ante la Escribana Myrian Garcete de Enciso Cuquejo e inscripto en el Registro
A104: Público de Comercio Sección Contratos bajo el Nº 1546- Folio 14406 y
A105: siguientes – Serie A del 19 de noviembre de 2012.
A107: Protocolización Acta de Asamblea: Escritura de Protocolización por
A108: integración el Capital Social de la firma Gas Corona S.A.E.C.A. por Escritura
A109: Pública Nº 19, folio 31 y sgtes. del 16 de agosto de 2013 ante la Escribana
A110: Myrian Garcete de Enciso e inscripto en el Registro Público de Comercio
A111: Sección Contratos bajo el Nº 157- Folio 1838 y siguientes - Serie E del 02 de
A112: septiembre de 2013.
A114: Decima Modificación de los Estatutos Sociales: Escritura de Aumento de
A115: Capital Social y Emisión de Acciones dentro del Capital Social de la firma
A116: Gas Corona S.A.E.C.A. por Escritura Pública Nº 19 del 03 de noviembre de
A117: 2014 ante la Escribana Myrian Garcete de Enciso Cuquejo e inscripto en el
A118: Registro Público de Comercio en la Serie C, bajo el Nº 560- Folio 6394 y
A119: siguientes y en el Registro Público de Contratos bajo el Nro. 336, Serie E –
A120: Folio 3351 de fecha 17 de julio de 2014.
A129: Protocolización Acta de Asamblea: Escritura de Protocolización por
A130: integración el Capital Social de la firma Gas Corona S.A.E.C.A. por Escritura
A131: Pública Nº 05, folio 07 y sgtes. del 01 de julio de 2015 ante la Escribana
A132: Myrian Garcete de Enciso e inscripto en el Registro Público de Comercio,
A133: Matricula Nro. 724, bajo el Nº 01 Folio 01-07 y siguientes – Serie Comercial
A134: del 02 de julio de 2015.
A136: Decima Primera Modificación de los Estatutos Sociales: Escritura de
A137: Aumento de Capital Social y Emisión de Acciones dentro del Capital Socia
A138: de la firma Gas Corona S.A.E.C.A. por Escritura Pública Nº 3 del 06 de mayo
A139: de 2016 ante la Escribana Myrian Garcete de Enciso Cuquejo e inscripto en el
A140: Registro Público de Comercio Sección Personas Jurídicas y Asociaciones, en
A141: la Serie C, bajo el Nº 1 Folio 6394 y siguientes y en el Registro Público de
A142: Contratos bajo el Nro. 336, Serie Folio 1 de fecha 15 de junio de 2016. Y en la
A143: Dirección de los Registros Públicos Sección Comercio en la Serie C, bajo el
A144: Nro. 02, folio 08-17, de fecha 15/06/2016.
A146: Decima Segunda Modificación de los Estatutos Sociales: Escritura de
A147: Aumento de Capital Social y Emisión de Acciones dentro del Capital Social
A148: de la firma Gas Corona S.A.E.C.A. por Escritura Pública Nº 7 del 15 de junio
A149: de 2017 ante la Escribana Myrian Garcete de Enciso Cuquejo e inscripto en el
A150: Registro Público de Comercio Sección Personas Jurídicas y Asociaciones, en
A151: la Serie Comercial, bajo el Nº 2, Folio 13 en fecha 23/08/2017 y en la
A152: Dirección Gral. Registro Público; Sección Comercio bajo el Nro. 03, Folio 18
A153: de fecha 29 de setiembre de 2017.
A155: Protocolización Acta de Asamblea: Escritura de Protocolización por
A156: integración el Capital Social de la firma Gas Corona S.A.E.C.A. por Escritura
A157: Pública Nº 13, folio 36 y sgtes. del 04 de junio de 2018 ante la Escribana
A158: Myrian Garcete de Enciso e inscripto en el Registro Público de Comercio,
A159: Matricula Nro. 724, bajo el Nº 4 Folio 28-36 y siguientes – Serie Comercial del
A160: 15 de octubre de 2018.
A162: Decima Tercera Modificación de los Estatutos Sociales: Escritura de
A163: Aumento de Capital Social y Emisión de Acciones dentro del Capital Social
A164: de la firma Gas Corona S.A.E.C.A. por Escritura Pública Nº 20 del 04 de junio
A165: de 2019 ante la Escribana Myrian Garcete de Enciso Cuquejo e inscripto en el
A166: Registro Público de Comercio Sección Personas Jurídicas y Asociaciones, en
A167: la Serie Comercial, bajo el Nº 3, Folio 26 en fecha 12/08/2019 y en la
A168: Dirección Gral. Registro Público; Sección Comercio bajo el Nro. 5, Folio 37
A169: de fecha 12 de agosto de 2019.
A170: Decima cuarta Modificacion de lo Estatutos Sociales: Escritura de
A171: Aumento de Capital Social y Emisión de Acciones dentro del Capital Social
A172: de la firma Gas Corona S.A.E.C.A. por Escritura Pública Nº 7 del 13 de mayo
A173: de 2021 ante la Escribana Myrian Garcete de Enciso Cuquejo e inscripto en el
A174: Registro Público de Comercio Sección Personas Jurídicas y Asociaciones, y
A175: Comericio de la Serie C, bajo el Nº 7, Folio 58, fecha 20/08/2021.
A177: El objetivo de la sociedad comprende todas la actividades lícitas a las que
A178: podrá dedicarse por cuenta propia, de terceros o asociados a terceros, y en
A179: especial al fraccionamiento y comercialización de los productos derivados
A180: del petróleo, la importación, comercialización, promoción y venta de toda
A181: clase de mercaderías, productos y elementos para cocinas a Gas y demás
A182: derivados; la importación de productos para el hogar. Podrá asimismo,
A183: comprar, vender, fraccionar, importar, exportar y envasar toda clase de
A184: productos, artículos y mercaderías, adquirir, establecer y exportar toda clase
A185: de empresas agrícolas, industriales, ganaderas y de cualquier otro tipo.
A186: Podrá también descontar, comprar y vender letras, pagarés, cheques, giros y
A187: otros documentos negociables, comprar y vender cédulas hipotecarias y
A188: cualquier otra clase de papeles negociables o títulos valores de oferta pública
A189: o privada.
A193: La sociedad podrá emitir acciones, obligaciones u otros títulos valores y
A194: podrán ser negociables en oferta pública a través del Mercado de Valores de
A195: conformidad a las leyes que regulan este mercado. La sociedad podrá actuar
A196: por cuenta propia, de terceros o asociada con otras personas o sociedades
A197: participando en su capital. La Sociedad queda autorizada con plena
A198: capacidad jurídica para entender y desarrollar cualquier tipo de actividades
A199: comerciales, industriales, inmobiliarias, empresariales o cualquier otra
A200: actividad lícita sin más limitaciones que las previstas en las leyes respectivas
A201: y este estatuto.
A203: El Capital Social se fija en la suma de Gs. 52.000.000.000 (Guaraníes Cincuenta
A204: y dos mil millones) y estará dividida en cincuenta y dos series de Gs. 1.000.000.000
A205: (Guaraníes un mil millones) cada serie. Cada serie estará compuesta
A206: de 100 (cien) acciones, de Gs. 10.000.000 (Guaraníes diez millones).
A208: La Sociedad tendrá una duración de cincuenta (50) años contados a partir del
A209: día en que la modificación de los Estatutos Sociales sea registrada en los
A210: correspondientes Registros Públicos, pudiendo ser prorrogado su término o
A211: anticiparse su disolución por resolución de la Asamblea General de
A212: Accionistas.
A214: En fecha 30 de agosto de 2005, según Resolución Nº 877/05, la Comisión
A215: Nacional de Valores resuelve, calificar a Gas Corona Sociedad Anónima
A216: como Sociedad Emisora de Capital Abierto, y en consecuencia autorizarla
A217: para operar en el mercado de valores e inscribirla en los Registros que al
A218: efecto lleva la Comisión, llevando la nomenclatura de S.A.E.C.A.
A228: =BG!D66 -> Sra Luisa Isabel Schaerer de Pallares | E228: =BG!E66 -> Sra. Maria Celeste Pallares Viveros
A229: =BG!D67 -> Presidente | E229: =BG!F67 -> Vicepresidente
A236: =BG!C72 -> Dr. Raul Fernando Vargas | E236: =BG!E72 -> C.P. Gloria Elizabeth Flecha Benitez
A237: =BG!D73 -> Sindico Titular | E237: =BG!F73 -> Contador

Sheet Nota 2
A1: =Indice!C1 -> GAS CORONA S.A.E.C.A. | I1: BG
A6: NOTA 2 - RESUMEN DE LAS PRINCIPALES POLÍTICAS CONTABLES
A7: Resumen de las principales políticas contables: a modo referencial, se incluyen las siguientes revelaciones de políticas contables en estados financieros de uso general que podrá ser tenida en consideración por las sociedades emisoras para la preparación de este capítulo de los estados financieros:
A10: a. Bases de contabilización (Según NIF Bases de preparación de los Estados Financieros)
A11: Los estados financieros se han preparado siguiendo los criterios de las Normas de Información Financiera (NIF) emitidas por el Consejo de Contadores Públicos del Paraguay sobre la base de costos históricos, excepto para el caso de activos y pasivos en moneda extranjera. Las propiedades, planta y equipo tuvieron ajustes por revaluación hasta finales del año 2019, sobre la base del coeficiente de variación del IPC anual. A partir del ejercicio 2020, la Ley 6380/2019 estableció que el revalúo se aplicará sobre las propiedades, planta y equipo, cuando el IPC acumulado desde la promulgación de la citada ley supere el 20%. Cabe destacar que al 30/09/2021, el coeficiente acumulado del IPC según el Banco Central del Paraguay, fue del 4,6%. En la República del Paraguay no se reconoce en forma integral los efectos de la inflación sobre la situación patrimonial y financiera de la sociedad, sobre los resultados de sus operaciones y los flujos de efectivo, en atención a que la corrección monetaria no constituye una práctica contable obligatoria en el Paraguay.
A12: De haberse aplicado una corrección monetaria integral de los estados financieros, podrían haber surgido diferencias en la presentación de la situación patrimonial y financiera de la sociedad, en los resultados de sus operaciones y en los flujos de efectivo al 30/09/2021. Según el índice general de precios del consumo (IPC) publicado por el Banco Central del Paraguay, la inflación acumulada al 30/09/2021 fue de 4,6%.
A15: b. Uso de estimaciones contables
A16: La preparación de los presentes estados financieros requiere que la Gerencia de la sociedad realice estimaciones y evaluaciones que afectan el monto de los activos y pasivos registrados y contingentes, como así también los ingresos y egresos registrados en el ejercicio. Los resultados reales futuros pueden diferir de las estimaciones y evaluaciones realizadas a la fecha de preparación de los presentes estados financieros.
A18: c. Moneda extranjera
A19: Los activos y pasivos en moneda extranjera se valúan a los tipos de cambio vigentes a la fecha de cierre del ejercicio.
A20: Las diferencias de cambio originadas por fluctuaciones en los tipos de cambio producidos entre las fechas de concertación de las operaciones y su liquidación o valuación al cierre del ejercicio, son reconocidas en resultados.
C23: =IFERROR(IF(Indice!B6="","2XX2",YEAR(Indice!B6)),"2XX2") -> 2021 | G23: =IFERROR(YEAR(Indice!B6-365),"2XX1") -> 2020
B24: Indicar moneda | C24: Simbología según ISO 4217 | D24: Guaranies | F24: Indicar moneda | G24: Simbología según ISO 4217 | H24: Guaranies
A25: Activos | B25: DOLARES | C25: USD | D25: =23100930+50706610+199399367+178047142+2111082749 -> 2562336798 | F25: DOLARES | G25: USD | H25: =23729824+51321049+840593245+46062729+922894299 -> 1884601146
A27: Pasivos | B27: DOLARES | C27: USD | D27: =550509474+216208125 -> 766717599 | F27: DOLARES | G27: USD | H27: =2088759361+320451625+4759799 -> 2413970785
A29: Posición neta | B29: DOLARES | C29: USD | D29: =D25-D28 -> 2562336798 | F29: DOLARES | G29: USD | H29: =H25-H27 -> -529369639
A32: A la fecha de emisión de estos estados financieros, el tipo de cambio de la moneda extranjera (Dólar Estadounidense) utilizado fue como sigue: Para los activos, TC Comprador Gs. 6.895,80; para los pasivos, TC Vendedor Gs. 6.918,66.
A34: d. Efectivo y equivalentes de efectivo
A35: Se considerarán dentro del concepto de efectivo los saldos en efectivo, disponibilidades en cuentas bancarias y toda inversión de muy alta liquidez, con vencimiento originalmente pactado no superior a tres meses.
A37: e. Inversiones
A38: Al cierre del trimestre, la Sociedad no poseía inversiones corrientes.
A40: f. Previsión para cuentas de dudoso cobro/incobrables
A41: Las previsiones para cuentas de dudoso cobro se determinan al cierre de cada ejercicio y/o mensualmente sobre la base del estudio de la cartera de créditos realizado con el objeto de determinar la porción no recuperable de las cuentas a cobrar. Las previsiones para cuentas de dudoso cobro se determinan mensualmente de acuerdo con el siguiente esquema de cálculo: Detalle de la constitucion de las previsiones.
A42: Criterios de Clasificación utilizados | B42: De | C42: A | D42: % Previsiones sobre Cartera
A43: Normal | B43: 1 | C43: 90 | D43: 0
A44: En Gestión de Cobro | B44: 91 | C44: 180 | D44: 0.2
A45: En Gestión de Cobro Judicial | B45: 181 | C45: 10000 | D45: 1
A48: g. Inventarios
A49: Las existencias se valúan al menor entre su costo de adquisición o de producción y su valor neto de realización (NIF 12, párrafo 5). Para determinar el consumo (baja de inventarios) se aplicarán las fórmulas de costeo siguientes: PPP (Precio Promedio Ponderado).
A52: h. Activos disponibles para la venta
A53: Al cierre del trimestre, la Sociedad no mantenía activos disponbles para la venta.
A54: i. Previsiones para desvalorización y deterioro de inventarios
A55: Las previsiones para desvalorización y deterioro de inventarios han sido estimadas tomando como base la valorización del stock deteriorado existente al cierre del ejercicio.
A57: j. Propiedades, planta y equipo
A58: Las propiedades, planta y equipo se exponen a su costo histórico ajustado por el coeficiente de revalúo emitido por la Autoridad Tributaria hasta el 31 de diciembre de 2019, menos la correspondiente depreciación acumulada. El incremento neto por la re-expresión se acredita a la respectiva reserva patrimonial, cuyo saldo puede ser utilizado únicamente para aumentar el capital.
A59: El costo de las mejoras que extienden la vida útil de los bienes o aumentan su capacidad productiva es imputado a las cuentas respectivas del activo. Los gastos de mantenimiento son cargados a resultados.
A60: La depreciación es calculada por el método de línea recta y se aplica consistentemente de ejercicio a ejercicio. A partir del ejercicio 2020, la Ley 6380/2019 estableció la determinación obligatoria de una tasa de salvamento sobre los activos fijos, por lo que la base de la depreciación fue disminuido al valor histórico del activo menos su tasa de salvamento.
A61: Los efectos de los ajustes sobre Propiedades, Planta y Equipo de operaciones discontinuadas se exponen formando parte de la línea “Resultados sobre actividades discontinuadas neto de impuesto a la renta” en el Estado de Resultados.
A64: k. Intangibles
A65: Los intangibles se exponen a su costo incurrido menos las correspondientes amortizaciones acumuladas al cierre del año.
A66: Las amortizaciones son calculadas por el método que refleja el patrón de consumo de los beneficios económicos derivados de los intangibles o por el método de línea recta (se explica el método elegido) si el patrón no pudiera ser determinado de forma fiable (NIF 15, párrafo 64). Ver Nota 11.
A67: Este rubro incluye costos incurridos por la sociedad relacionados con ingresos futuros.
A77: l. Goodwill
A78: La Sociedad no posee operaciones de Goodwill que deban ser expuestos.
A79: m. Reconocimiento de ingresos y egresos
A80: Los ingresos y egresos son reconocidos en función de su devengamiento.
A82: n. Impuesto a la renta
A83: El impuesto a la renta que se carga a los resultados del año se basa en la utilidad contable antes de este concepto, ajustada por las partidas que la ley incluye o excluye para la determinación de la utilidad gravable a la que se aplica la tasa legal vigente del impuesto y por el reconocimiento del cargo o el ingreso originado por la aplicación del impuesto diferido, si los hubiere.
A85: o. Restricciones a la distribución de utilidades
A86: No se podra hacer Distribucion provisoria de dividendos durante el ejericio con cargo a las utilidades del mismo, Los dividendos no cobrados prescribiran a favor de la sociedad a los cinco
A87: años de la fecha en que fueron autorizados los respectivos pagos
A89: p. Derechos en Fideicomiso
A90: La Sociedad no cuenta con operaciones de fideicomiso que reportar.
A91: q. Otros principios, prácticas y métodos
A92: La Sociedad ha mantenido de manera uniforme y constante las políticas contables arriba mencionadas y no existieron modificaciones sustanciales que pudieran ser reportables.
A98: =BG!D66 -> Sra Luisa Isabel Schaerer de Pallares | D98: =BG!E66 -> Sra. Maria Celeste Pallares Viveros
A99: =BG!D67 -> Presidente | D99: =BG!F67 -> Vicepresidente
A107: =BG!C72 -> Dr. Raul Fernando Vargas | D107: =BG!E72 -> C.P. Gloria Elizabeth Flecha Benitez
A108: =BG!D73 -> Sindico Titular | D108: =BG!F73 -> Contador

Sheet Nota 3
A6: =Indice!C1 -> GAS CORONA S.A.E.C.A. | E6: BG
A12: NOTA 3 - EFECTIVO Y EQUIVALENTE DE EFECTIVO
A13: Expresado en Guaranies
A15: En la cuenta Recauadaciones a depositar se incluye los depositos pendientes de confirmacion en los bancos, en la cuenta Bancos se registra
A16: los saldos en la cuentas corrientes y caja de ahorros; y la cuenta Fondos Fijos, son fondos de caja chica que maneja la empresa.
A17: La composición de la cuenta es la siguiente:
A19: Concepto | C19: =IFERROR(IF(Indice!B6="","2XX2",YEAR(Indice!B6)),"2XX2") -> 2021 | D19: =IFERROR(YEAR(Indice!B6-365),"2XX1") -> 2020
A21: Caja
A22: Recaudaciones a depositar | C22: 1113098423 | D22: 978648937
A23: Bancos Locales - Moneda local Guaraníes | C23: =4770522269-C24 -> 4342369150 | D23: =27579389079-D24 -> 26641412056
A24: Bancos Locales - Moneda extranjera Dólares | C24: =50706610+199399367+178047142 -> 428153119 | D24: =51321049+840593245+46062729 -> 937977023
A25: Bancos Locales - Moneda extranjera otros | C25: 0 | D25: 0
A26: Bancos en el Extranjero - Moneda extranjera Dólares | C26: 0 | D26: 0
A27: Fondo Fijo - Moneda local Guaraníes | C27: 119480930 | D27: 105849824
A28: Total | C28: =SUM($C$21:C27) -> 6003101622 | D28: =SUM($D$21:D27) -> 28663887840
A36: =BG!D66 -> Sra Luisa Isabel Schaerer de Pallares | B36: =BG!E66 -> Sra. Maria Celeste Pallares Viveros
A37: =BG!D67 -> Presidente | B37: =BG!F67 -> Vicepresidente
A47: =BG!C72 -> Dr. Raul Fernando Vargas | C47: =BG!E72 -> C.P. Gloria Elizabeth Flecha Benitez
A48: =BG!D73 -> Sindico Titular | C48: =BG!F73 -> Contador

Sheet Nota 4
A1: =Indice!C1 -> GAS CORONA S.A.E.C.A. | D1: BG
A4: NOTA 4 - INVERSIONES TEMPORALES
A5: NO APLICA PARA GAS CORONA ESTA NOTA
A6: La composición de la cuenta es la siguiente:
A8: Concepto | B8: =IFERROR(IF(Indice!B6="","2XX2",YEAR(Indice!B6)),"2XX2") -> 2021 | C8: =IFERROR(YEAR(Indice!B6-365),"2XX1") -> 2020
A9: Inversiones en Titulos del Sistema Financiero Local - Moneda Local Guaraníes | B9: 0 | C9: 0
A10: Inversiones en Titulos del Sistema Financiero Local - Moneda Extranjera Dólares | B10: 0 | C10: 0
A11: Inversiones en Titulos del Sistema Financiero Local - Moneda Extranjera otros | B11: 0 | C11: 0
A12: Inversiones en Mercado Bursatil Local - Moneda Local Guaraníes | B12: 0 | C12: 0
A13: Inversiones en Mercado Bursatil Local - Moneda Extranjera Dólares | B13: 0 | C13: 0
A14: Inversiones en Mercado Bursatil Extranjera - Moneda Extranjera Dólares | B14: 0 | C14: 0
A15: Inversiones en Mercado Bursatil Extranjera - Moneda Extranjera otros | B15: 0 | C15: 0
A16: Otras inversiones - Moneda Local Guaraníes | B16: 0 | C16: 0
A17: Otras inversiones - Moneda Extranjera Dólares | B17: 0 | C17: 0
A18: Total | B18: =SUM($B$9:B17) -> 0 | C18: =SUM($C$9:C17) -> 0
A25: Sra Luisa Isabel Schaerer de Pallares | C25: Sra. Maria Celeste Pallares Viveros
A26: Presidente | C26: Vicepresidente
A34: Dr. Raul Fernando Vargas | C34: C.P. Gloria Elizabeth Flecha Benitez
A35: Sindico Titular | C35: Contador

Sheet Nota 5
A1: =Indice!C1 -> GAS CORONA S.A.E.C.A. | F1: BG
A2: Detallar cartera vencida y no vencida por clientes locales, extranjeros y partes relacionadas
A3: Se indicarán en este rubro todos los créditos a favor de la empresa provenientes de las ventas de Mercaderías y/o servicios (atendiendo a la actividades ordinarias de la empresa), separando las ventas locales en moneda nacional y/o extranjera de las ventas fuera del país en moneda nacional y/o extranjera
A5: NOTA 5 – CUENTAS POR COBRAR COMERCIALES
A6: Las cuentas por cobrar son al igual que cualquier activo de recursos económicos propiedad de la empresa que le genera un beneficio en el futuro; forma parte del activo corriente, cuya percepción se prevé para un tiempo máximo de doce meses
A7: Están constituidas por créditos a favor de GAS CORONA, originados por operaciones normales de la empresa a clientes varios y a entidades relacionadas. Como medida de Control Financiero Contable, se concilian las cuentas por cobrar a entes relacionados, con los saldos contables de las instituciones o empresas relacionadas, y se investiaga todas las diferencias observadas.
A8: Las cuentas a cobrar se integran como sigue:
C11: Expresado en Guaranies
C12: =IFERROR(IF(Indice!B6="","2XX2",YEAR(Indice!B6)),"2XX2") -> 2021 | D12: =IFERROR(YEAR(Indice!B6-365),"2XX1") -> 2020 | F12: Composición de la cartera de créditos por ventas | G12: 2021-09-30
A13: Deudores por ventas locales | B13: Moneda Local Guaraníes | C13: =3700588861+87040315 -> 3787629176 | D13: =3948330985+85689000 -> 4034019985 | F13: Situación | G13: Monto | H13: % Previsiones sobre Cartera
A14: Deudores por ventas locales | B14: Moneda Extranjera Dólares | C14: 0 | D14: 0 | F14: A Total Cartera no Vencida | G14: 7049934981 | H14: 0
A15: Deudores por ventas locales | B15: Moneda Extranjera otros | C15: 0 | D15: 0 | F15: B. Total Cartera Vencida | G15: =G17+G18+G19 -> 7477745437
A16: Deudores por ventas en el exterior | B16: Moneda Local Guaraníes | C16: 0 | D16: 0 | F16: Composición Cartera Vencida
A17: Deudores por ventas en el exterior | B17: Moneda Extranjera Dólares | C17: 0 | D17: 0 | F17: Normal | G17: 801306586 | H17: 0
A18: Deudores por ventas en el exterior | B18: Moneda Extranjera otros | C18: 0 | D18: 0 | F18: En Gestión de Cobro | G18: 927929595 | H18: 0.290493
A19: Deudores - Entidad relacionada | B19: Moneda Local Guaraníes | C19: 4991541986 | D19: 4741357062 | F19: En Gestión de Cobro Judicial | G19: 5748509256 | H19: 1
A20: Deudores - Entidad relacionada | B20: Moneda Extranjera Dólares | C20: 0 | D20: 0
A21: Deudores - Entidad relacionada | B21: Moneda Extranjera otros | C21: 0 | D21: 0 | F21: Total de la cartera de créditos (A+B) | G21: =G14+G15 -> 14527680418
A22: Cheques adelantados recibidos de clientes | B22: Moneda Local Guaraníes | C22: 7884848692 | D22: 9651171528
A23: Cheques adelantados recibidos de clientes | B23: Moneda Extranjera Dólares | C23: 0 | D23: 0 | F23: (-) Total Previsiones | G23: =-((G14*H14)+(SUMPRODUCT(G17:G19,H17:H19))) -> -6018066308
A24: Cheques adelantados recibidos de clientes | B24: Moneda Extranjera otros | C24: 0 | D24: 0
A25: Cheques rechazados | B25: Moneda Local Guaraníes | C25: 3330767395 | D25: 3254388933 | F25: TOTAL NETO DE LA CARTERA DE CRÉDITOS | G25: =G21+G23 -> 8509614110
A26: Cheques rechazados | B26: Moneda Extranjera Dólares | C26: 0 | D26: 0
A27: Gestion de Cobro | B27: Moneda Local Guaraníes | C27: 5748509256 | D27: 5748509256 | F27: Observaciones
A28: Otros Creditos | B28: Moneda Extranjera Dólares | C28: 0 | D28: 0 | F28: Criterios de Clasificación utilizados | G28: De | H28: A
A29: Otros Creditos | B29: Moneda Extranjera otros | C29: 0 | D29: 0 | F29: Normal | G29: 1 | H29: 90
A30: Menos Previsiones | C30: -9272106014 | D30: =-269556575-5598509256-150000000-3254040183 -> -9272106014 | F30: En Gestión de Cobro | G30: 91 | H30: 180
A31: Total | C31: =+SUM($C$13:C30) -> 16471190491 | D31: =+SUM($D$13:D30) -> 18157340750 | F31: En Gestión de Cobro Judicial | G31: 181 | H31: 10000
A34: Las cuentas a cobrar comerciales a largo plazo se integran como sigue:
C36: =IFERROR(IF(Indice!B6="","2XX2",YEAR(Indice!B6)),"2XX2") -> 2021 | D36: =IFERROR(YEAR(Indice!B6-365),"2XX1") -> 2020
A37: Deudores por ventas locales | B37: Moneda Local Guaraníes
A38: Deudores por ventas locales | B38: Moneda Extranjera Dólares | F38: Sra Luisa Isabel Schaerer de Pallares | G38: Sra. Maria Celeste Pallares Viveros
A39: Deudores por ventas locales | B39: Moneda Extranjera otros | F39: Presidente | G39: Vicepresidente
A40: Deudores por ventas en el exterior | B40: Moneda Local Guaraníes
A41: Deudores por ventas en el exterior | B41: Moneda Extranjera Dólares
A42: Deudores por ventas en el exterior | B42: Moneda Extranjera otros
A43: Deudores - Entidad relacionada | B43: Moneda Local Guaraníes
A44: Deudores - Entidad relacionada | B44: Moneda Extranjera Dólares
A45: Deudores - Entidad relacionada | B45: Moneda Extranjera otros
A46: Cheques adelantados recibidos de clientes | B46: Moneda Local Guaraníes
A47: Cheques adelantados recibidos de clientes | B47: Moneda Extranjera Dólares | F47: Dr. Raul Fernando Vargas | G47: C.P. Gloria Elizabeth Flecha Benitez
A48: Cheques adelantados recibidos de clientes | B48: Moneda Extranjera otros | F48: Sindico Titular | G48: Contador
A49: Deudores en gestión judicial | B49: Moneda Local Guaraníes
A50: Deudores en gestión judicial | B50: Moneda Extranjera Dólares
A51: Deudores en gestión judicial | B51: Moneda Extranjera otros
A52: Cheques rechazados | B52: Moneda Local Guaraníes
A53: Cheques rechazados | B53: Moneda Extranjera Dólares
A54: Otros | B54: Moneda Local Guaraníes
A55: Otros | B55: Moneda Extranjera Dólares
A56: Otros | B56: Moneda Extranjera otros
A57: Menos Previsiones
A58: Total | C58: =+SUM($C$37:C57) -> 0 | D58: =+SUM($D$37:D57) -> 0

Sheet Nota 6
A1: =Indice!C1 -> GAS CORONA S.A.E.C.A. | D1: BG
A4: NOTA 6 - OTROS CRÉDITOS
A5: Expresado en Guaranies
A6: Se Registra los pagos anticipados a los proveedores, los derechos de cobros a los terceros no provenientes de la Actividad Economica principal de la Empresa; los saldos de Impuestos
A7: (Anticipos y Retenciones del Impuesto a la Renta Empresarial) y los gastos pagados por adelantados que compnen los insumos, repuestos, uniformes y otros que seran adsorbidos como
A8: gastos conforme se vayan utilizando.
A9: El rubro de otros créditos se compone como sigue:
A11: Corrientes | E11: No corrientes
A13: Concepto | B13: =IFERROR(IF(Indice!B6="","2XX2",YEAR(Indice!B6)),"2XX2") -> 2021 | C13: =IFERROR(YEAR(Indice!B6-365),"2XX1") -> 2020 | E13: Concepto | F13: =IFERROR(IF(Indice!B6="","2XX2",YEAR(Indice!B6)),"2XX2") -> 2021 | G13: =IFERROR(YEAR(Indice!B6-365),"2XX1") -> 2020
A14: Anticipos a proveedores | B14: 2111082749 | C14: 922894299 | E14: Garantía de Alquiler | F14: 0 | G14: 0
A15: Gastos pagados por adelantado | B15: =2893231151-1385219179 -> 1508011972 | C15: =2264921416-1235178077 -> 1029743339 | E15: I.V.A. Crédito fiscal | F15: 0 | G15: 0
A16: Anticipo Impuesto a la Renta | B16: 2081406848 | C16: 1546951428 | E16: Anticipos a proveedores | F16: 0 | G16: 0
A17: Retención Impuesto a la Renta | B17: =8439364+162352625 -> 170791989 | C17: =103070810+6563766 -> 109634576 | E17: Seguros a Vencer | F17: 0 | G17: 0
A18: Retención Impuesto al Valor agregado | B18: 0 | C18: 0 | E18: Total | F18: =SUM(F14:F17) -> 0 | G18: =SUM(G14:G17) -> 0
A19: IVA Credito Fiscal | B19: 0 | C19: 0
A20: Deudores Varios | B20: =34279554+536588298+44825780 -> 615693632 | C20: =41515535+176865168+35183950 -> 253564653
A21: Total | B21: =SUM($B$14:B20) -> 6486987190 | C21: =SUM($C$14:C20) -> 3862788295
A27: Sra Luisa Isabel Schaerer de Pallares | B27: Sra. Maria Celeste Pallares Viveros | E27: Dr. Raul Fernando Vargas | F27: C.P. Gloria Elizabeth Flecha Benitez
A28: Presidente | B28: Vicepresidente | E28: Sindico Titular | F28: Contador

Sheet Nota 7
A1: =Indice!C1 -> GAS CORONA S.A.E.C.A. | D1: BG
A4: NOTA 7 – INVENTARIOS
A6: Los inventarios representan el valor monetario de las materias primas y mercaderías que se encuentran almacenados y resguardados, para su posterior
A7: comercialización. Los costos se valúan bajo el método del Promedio Ponderado. De manera obligatoria, la Empresa realiza las conciliaciones de los saldos
A8: en los libros con los respectivos inventarios físicos al final de cada mes. Este manejo contable permite a la Empresa mantener un control oportuno y así tener
A9: al final de cada periodo un estado confiable de la situación económica.
A10: Los bienes de cambio están compuestos de la siguiente manera:
B11: Expresado en Guaraníes
A12: Concepto | B12: =IFERROR(IF(Indice!B6="","2XX2",YEAR(Indice!B6)),"2XX2") -> 2021 | C12: =IFERROR(YEAR(Indice!B6-365),"2XX1") -> 2020
A13: Mercaderías GLP | B13: 10793978688 | C13: 4294724960
A14: Envases - Tanques - Repuestos | B14: =18011141216+200003290+4426712 -> 18215571218 | C14: =17620289052+239245632 -> 17859534684
A15: Importación en curso | B15: 767086779 | C15: 520236711
A16: Materia prima | B16: 0 | C16: 0
A17: Mercaderías Combustibles- Lubricantes | B17: 746017652 | C17: 738869054
A18: (-) Previsión para desvalorización y deterioro de inventario | B18: 0 | C18: 0
A19: Total | B19: =SUM(B13:B18) -> 30522654337 | C19: =SUM(C13:C18) -> 23413365409
A25: Sra. Luisa Isabel Schaerer de Pallares | B25: Sra. Maria Celeste Pallares Viveros
A26: Presidente | B26: Vicepresidente
A34: Dr. Raúl Fernando Vargas | B34: C.P. Gloria Elizabeth Flecha Benitez
A35: Sindico Titular | B35: Contador

Sheet Nota 8
A1: =Indice!C1 -> GAS CORONA S.A.E.C.A. | D1: BG
A3: NO APLICA
A4: Nota 8 - INVERSIONES EN ASOCIADAS
A5: Expresado en guaraníes
A6: Las inversiones en sociedades donde no se ejerce control se describen a continuación
A7: Periodo | B7: =IFERROR(IF(Indice!B6="","2XX2",YEAR(Indice!B6)),"2XX2") -> 2021 | C7: =IFERROR(YEAR(Indice!B6-365),"2XX1") -> 2020
A8: Total Inversión | B8: =SUM($I$13:I18) -> 0 | C8: 0 | D8: <-- Indicar Monto
A10: a) Datos sobre la sociedad: | G10: a) Datos sobre la inversión:
D11: =IFERROR(IF(Indice!B6="","2XX2",YEAR(Indice!B6)),"2XX2") -> 2021
A12: Nombre de Sociedad | B12: RUC | C12: Cantidad de acciones | D12: Total Patrimonio neto | E12: Total del resultado | G12: Cantidad de acciones | H12: Participación sobre los votos (%) | I12: Total Inversión (miles de Gs) | J12: Participación sobre el Patrimonio Neto (%) | K12: Total valuación patrimonial proporcional | L12: Resultado sobre inversiones
K13: =J13*D13 -> 0 | L13: =J13*E13 -> 0
K14: =J14*D14 -> 0 | L14: =J14*E14 -> 0
K15: 0 | L15: 0
K16: 0 | L16: 0
K17: 0 | L17: 0
K18: 0 | L18: 0
A22: Sra Luisa Isabel Schaerer de Pallares | D22: Sra. Maria Celeste Pallares Viveros | G22: Dr. Raul Fernando Vargas | J22: C.P. Gloria Elizabeth Flecha Benitez
A23: Presidente | D23: Vicepresidente | F23: Sindico Titular | J23: Contador

Sheet Nota 9
A1: =Indice!C1 -> GAS CORONA S.A.E.C.A. | L1: BG
A6: NOTA 9 - PROPIEDADES, PLANTA Y EQUIPO - NETO
A7: Expresado en guaraníes
A8: Contempla las inversiones en bienes tangibles cuya vida útil esta regida por las Reglamentaciones emitidas por la Subsecretaria de Estado de Tributación, los cuales son adquiridos, construidos con el propósito de ser
A9: utilizados para el desarrollo de la Empresa. Los componentes de la Propiedad, Planta y Equipo son registrados al costo de adquisición mas los gastos necesarios para su utilización. Las renovaciones y mejoras
A10: importantes realizadas porsterior a la adquisición de los elementos componentes de la Propiedad, Planta y Equipo solo se reconocen como Activos cuando mejoren las condiciones del Bien de manera tal que amplian
A11: su vida útil o incrementa su capacidad de productividad.
A12: Depreciación Acumulada: registra los movimientos de las depreciaciones por la perdida de capacidad operacional de los bienes de uso, teniendo en cuenta su vida útil.
B14: Costo histórico revaluado al inicio del año - Periodo | C14: Adquisiciones | D14: Bajas | E14: Revalúo del año | F14: Valor de origen revaluado al final del periodo | G14: Depreciación acumulada revaluada al inicio del año | H14: Depreciación del año | I14: Bajas de depreciaciones acumuladas | J14: Revalúo depreciación acumulada del año | K14: Depreciación acumulada revaluada al final del año | L14: Valor neto contable | M14: Valor neto contable
L15: =IFERROR(IF(Indice!B6="","2XX2",YEAR(Indice!B6)),"2XX2") -> 2021 | M15: =IFERROR(YEAR(Indice!B6-365),"2XX1") -> 2020
A16: Inmuebles | B16: 8936968875 | C16: 0 | D16: 0 | E16: 0 | F16: =B16 -> 8936968875 | G16: 0 | H16: 0 | I16: 0 | J16: 0 | K16: =G16+H16-I16+J16 -> 0 | L16: =F16 -> 8936968875 | M16: 8936968875
A17: Edificios y Mejoras | B17: 12928440112 | C17: 0 | D17: 0 | E17: 0 | F17: =B17+C17-D17+E17 -> 12928440112 | G17: 4168870687 | H17: =(10857261*3)+(12522741*3) -> 70140006 | I17: 0 | J17: 0 | K17: =G17+H17-I17+J17 -> 4239010693 | L17: =F17-K17 -> 8689429419 | M17: 8719615300
A18: Maquinarias y Equipos | B18: 11222220078 | C18: 88977463 | D18: 0 | E18: 0 | F18: =B18+C18-D18+E18 -> 11311197541 | G18: 7301733743 | H18: =40937302*3 -> 122811906 | I18: 0 | J18: 0 | K18: =G18+H18-I18+J18 -> 7424545649 | L18: =F18-K18 -> 3886651892 | M18: 3603990105
A19: Maquinas de Oficina | B19: 109299967 | C19: 0 | D19: 0 | E19: 0 | F19: =B19+C19-D19+E19 -> 109299967 | G19: 100708415 | H19: =200000*3 -> 600000 | I19: 0 | J19: 0 | K19: 101308415 | L19: 7991552 | M19: 10140916
A20: Tanques p/Gas Licuado Petróleo | B20: 16418820463 | C20: 0 | D20: 0 | E20: 0 | F20: 16418820463 | G20: 12654924335 | H20: =75762150*3 -> 227286450 | I20: 0 | J20: 0 | K20: 12882210785 | L20: 3536609678 | M20: -275205035
A21: Instalaciones | B21: 2461537878 | C21: 15760000 | D21: 0 | E21: 0 | F21: 2477297878 | G21: 2047842729 | H21: =20540363*3 -> 61621089 | I21: 0 | J21: 0 | K21: 2109463818 | L21: 367834060 | M21: 344324130
A22: Muebles y Útiles | B22: 1138308424 | C22: =29181350+11204024 -> 40385374 | D22: 0 | E22: 0 | F22: 1178693798 | G22: 737835713 | H22: =8529216*3 -> 25587648 | I22: 0 | J22: 0 | K22: 763423361 | L22: 415270437 | M22: 340288374
A23: Muebles y Bancos de Trabajo | B23: 647486907 | C23: 11016294 | D23: 0 | E23: 0 | F23: 658503201 | G23: 535356616 | H23: =2206300*3 -> 6618900 | I23: 0 | J23: 0 | K23: 541975516 | L23: 116527685 | M23: 132632587
A24: Herramientas | B24: 179954356 | C24: 9979500 | D24: 0 | E24: 0 | F24: 189933856 | G24: 95944791 | H24: =1341084*3 -> 4023252 | I24: 0 | J24: 0 | K24: 99968043 | L24: 89965813 | M24: 41523600
A25: Equipos de Seguridad y Protección | B25: 1313335499 | C25: 0 | D25: 0 | E25: 0 | F25: 1313335499 | G25: 1361716692 | H25: =17721432*3 -> 53164296 | I25: 0 | J25: 0 | K25: 1414880988 | L25: -101545489 | M25: 89626595
A26: Equipos de Comunicación | B26: 344472924 | C26: 11220543 | D26: 0 | E26: 0 | F26: 355693467 | G26: 333690724 | H26: =505744*3 -> 1517232 | I26: 0 | J26: 0 | K26: 335207956 | L26: 20485511 | M26: 24505102
A27: Rodados | B27: 24382888469 | C27: 831720000 | D27: 0 | E27: 0 | F27: 25214608469 | G27: 17551734887 | H27: =182668457*3 -> 548005371 | I27: 0 | J27: 0 | K27: 18099740258 | L27: 7114868211 | M27: 6833107035
A28: Embarcación | B28: 29860051 | C28: 0 | D28: 0 | E28: 0 | F28: 29860051 | G28: 4743285 | H28: =99670*3 -> 299010 | I28: 0 | J28: 0 | K28: 5042295 | L28: 24817756 | M28: 25789540
A29: Equipos de Informática | B29: 1009637541 | C29: 34531563 | D29: 0 | E29: 0 | F29: 1044169104 | G29: 938631649 | H29: =3681335*3 -> 11044005 | I29: 0 | J29: 0 | K29: 949675654 | L29: 94493450 | M29: 83293917
A30: Equipos de Jardinería | B30: 17542918 | C30: 0 | D30: 0 | E30: 0 | F30: 17542918 | G30: 17542921 | H30: 0 | I30: 0 | J30: 0 | K30: =G30+H30-I30+J30 -> 17542921 | L30: -3 | M30: -3
A31: Maquinarias Estaciones de Servicio | B31: 18190414103 | C31: 0 | D31: 0 | E31: 0 | F31: 18190414103 | G31: 13592136072 | H31: =72450284*3 -> 217350852 | I31: 0 | J31: 0 | K31: =G31+H31-I31+J31 -> 13809486924 | L31: 4380927179 | M31: 4580006433
A32: Obras y Proyectos en curso | B32: 3618553868 | C32: =34828008+58207188 -> 93035196 | D32: 0 | E32: 0 | F32: 3711589064 | G32: 0 | H32: 0 | I32: 0 | J32: 0 | K32: 0 | L32: 3711589064 | M32: 605342716
A33: Barcaza | B33: 0 | C33: 0 | D33: 0 | E33: 0 | F33: 0 | G33: 0 | H33: 0 | I33: 0 | J33: 0 | K33: 0 | L33: 0 | M33: 2542623680
B34: 0
A35: Totales | B35: =SUM(B16:B34) -> 102949742433 | C35: 1136625933 | D35: 0 | E35: 0 | F35: 104086368366 | G35: =SUM(G16:G34) -> 61443413259 | H35: 1350070017 | I35: 0 | J35: 0 | K35: 62793483276 | L35: =SUM($L$16:L34) -> 41292885090 | M35: =SUM($M$16:M34) -> 36638573867
A42: Sra. Luisa Isabel Schaerer de Pallares | C42: Sra. Maria Celeste Pallares Viveros | G42: Dr. Raúl Fernando Vargas | K42: C.P. Gloria Elizabeth Flecha Benitez
A43: Presidente | C43: Vicepresidente | G43: Sindico Titular | K43: Contador

Sheet Nota 10
A1: =Indice!C1 -> GAS CORONA S.A.E.C.A. | C1: BG
A4: NOTA 10 – ACTIVOS DISPONIBLES PARA LA VENTA
B5: Expresado en Guaranies
B8: =IFERROR(IF(Indice!B6="","2XX2",YEAR(Indice!B6)),"2XX2") -> 2021 | C8: =IFERROR(YEAR(Indice!B6-365),"2XX1") -> 2020
A9: Propiedad, planta y equipo
A10: (Detallar bienes de uso)
A11: Total | B11: =B10 -> 0 | C11: =C10 -> 0
A13: Activos intangibles
A14: (Detallar activos intangibles)
A15: Total | B15: =B14 -> 0 | C15: =C14 -> 0
A17: Inversiones
A18: Mejoras Propiedad de Terceros | B18: 865446281 | C18: 1106840918
A19: Contratos con EESS | B19: 4076903559 | C19: 4276102434
A20: Mantenimiento de Garrafas | B20: 5169968999 | C20: 5196743816
A21: Total | B21: =SUM(B18:B20) -> 10112318839 | C21: =SUM(C18:C20) -> 10579687168
A23: Total general | B23: =B11+B15+B21 -> 10112318839 | C23: =C11+C15+C21 -> 10579687168
A32: Sra Luisa Isabel Schaerer de Pallares | B32: Sra. Maria Celeste Pallares Viveros
A33: Presidente | B33: Vicepresidente
A41: Dr. Raul Fernando Vargas | B41: C.P. Gloria Elizabeth Flecha Benitez
A42: Sindico Titular | B42: Contador

Sheet Nota 11
A1: =Indice!C1 -> GAS CORONA S.A.E.C.A. | F1: BG
A4: NOTA 11 – ACTIVOS INTANGIBLES
B5: Expresado en Guaranies
A6: Los Activos Intangibles se registran al costo de adquisicion, mas cualquier costo directamente atribuible a la
A7: preparacion del activo para su uso. Los activos intangibles se amortizan en 5 años
A9: Activos intangibles | B9: =IFERROR(IF(Indice!B6="","2XX2",YEAR(Indice!B6)),"2XX2") -> 2021 | C9: =IFERROR(YEAR(Indice!B6-365),"2XX1") -> 2020
A10: Implementacion de Sotfware | B10: 2539816124 | C10: 2139944405
A11: Menos amortización acumulada | B11: -1703005762 | C11: -1443565831
A13: Total general | B13: =SUM(B10:B12) -> 836810362 | C13: =SUM(C10:C12) -> 696378574
A20: Sra Luisa Isabel Schaerer de Pallares | C20: Sra. Maria Celeste Pallares Viveros
A21: Presidente | C21: Vicepresidente
A29: Dr. Raul Fernando Vargas | C29: C.P. Gloria Elizabeth Flecha Benitez
A30: Sindico Titular | C30: Contador

Sheet Nota 12
A1: =Indice!C1 -> GAS CORONA S.A.E.C.A. | E1: BG
A4: NO APLICA
A5: NOTA 12 – GOODWILL
B6: Expresado en guaranies
A7: Goodwill | B7: =IFERROR(IF(Indice!B6="","2XX2",YEAR(Indice!B6)),"2XX2") -> 2021 | C7: =IFERROR(YEAR(Indice!B6-365),"2XX1") -> 2020
B8: 0 | C8: 0
B9: 0 | C9: 0
A11: Total general | B11: =SUM(B8:B10) -> 0 | C11: =SUM(C8:C10) -> 0
A20: Sra Luisa Isabel Schaerer de Pallares | C20: Sra. Maria Celeste Pallares Viveros
A21: Presidente | C21: Vicepresidente
A29: Dr. Raul Fernando Vargas | B29: C.P. Gloria Elizabeth Flecha Benitez
A30: Sindico Titular | B30: Contador

Sheet Nota 13
A1: =Indice!C1 -> GAS CORONA S.A.E.C.A. | C1: BG
A4: NOTA 13 – CUENTAS POR PAGAR COMERCIALES
A5: Expresado en Guaranies
A6: Las cuentas a pagar son pasivos originados por bienes o servicios que han sido recibidos y que han sido facturados o formalmente acordados con el proveedor.
A7: Las cuentas a pagar son obligaciones contraídas y se reconoce como sigue:
A9: Corrientes | B9: Simbología según ISO 4217 | C9: Indicación de Moneda | D9: =IFERROR(IF(Indice!B6="","2XX2",YEAR(Indice!B6)),"2XX2") -> 2021 | E9: =IFERROR(YEAR(Indice!B6-365),"2XX1") -> 2020
A10: Proveedores - Entidades Relacionadas | B10: PYG | C10: =IFERROR(VLOOKUP(B10,'Base de Monedas'!A:B,2,0),"") -> Guaraní | D10: 11000000 | E10: =453000+181200 -> 634200
A11: Otros proveedores del exterior | B11: PYG | C11: =IFERROR(VLOOKUP(B11,'Base de Monedas'!A:B,2,0),"") -> Guaraní | D11: 550509474 | E11: 2088759361
A12: Proveedores locales | B12: PYG | C12: =IFERROR(VLOOKUP(B12,'Base de Monedas'!A:B,2,0),"") -> Guaraní | D12: 2352940447 | E12: 1379284786
A13: Proveedores Combustibles y GLP | B13: PYG | C13: =IFERROR(VLOOKUP(B13,'Base de Monedas'!A:B,2,0),"") -> Guaraní | D13: 13305901000 | E13: 9146727000
A14: Proveedores con Cheques Emitidos | B14: PYG | C14: =IFERROR(VLOOKUP(B14,'Base de Monedas'!A:B,2,0),"") -> Guaraní | D14: 4092073666 | E14: 6441700140
A15: Documentos a Pagar | B15: PYG | C15: =IFERROR(VLOOKUP(B15,'Base de Monedas'!A:B,2,0),"") -> Guaraní | D15: 231498364 | E15: 320451625
A16: Acreedores Varios | B16: PYG | C16: =IFERROR(VLOOKUP(B16,'Base de Monedas'!A:B,2,0),"") -> Guaraní | D16: =740775807+351895992 -> 1092671799 | E16: =671009284+133634912 -> 804644196
A17: Total cuentas a pagar por comerciales | D17: =SUM($D$10:D16) -> 21636594750 | E17: =SUM($E$10:E16) -> 20182201308
A21: No Corrientes | B21: Simbología según ISO 4217 | C21: Indicación de Moneda | D21: =IFERROR(YEAR(Indice!B6),"2XX2") -> 2021 | E21: =IFERROR(YEAR(Indice!B6-365),"2XX1") -> 2020
A22: Proveedores - Entidades Relacionadas | C22: =IFERROR(VLOOKUP(B22,'Base de Monedas'!A:B,2,0),"") -> 
A23: Otros proveedores del exterior | C23: =IFERROR(VLOOKUP(B23,'Base de Monedas'!A:B,2,0),"") -> 
A24: Proveedores locales | C24: =IFERROR(VLOOKUP(B24,'Base de Monedas'!A:B,2,0),"") -> 
A25: Documentos a Pagar | B25: PYG | C25: =IFERROR(VLOOKUP(B25,'Base de Monedas'!A:B,2,0),"") -> Guaraní | D25: 516042093 | E25: =65198994+11184560 -> 76383554
A26: Total cuentas a pagar por comerciales | D26: =SUM($D$22:D25) -> 516042093 | E26: 170082944
A33: Sra Luisa Isabel Schaerer de Pallares | B33: Sra. Maria Celeste Pallares Viveros | C33: Dr. Raul Fernando Vargas | D33: C.P. Gloria Elizabeth Flecha Benitez
A34: Presidente | B34: Vicepresidente | C34: Sindico Titular | D34: Contador

Sheet Nota 14
A1: =Indice!C1 -> GAS CORONA S.A.E.C.A. | E1: BG | L1: BG
A4: NOTA 14 – PRESTAMOS A CORTO Y LARGO PLAZO
A6: Exponemos detalle de las colocacion de bonos del Programa Emision Global de Bonos G3 y los intereses que corresponde por la emision de los bonos.
A9: Corrientes
D10: =IFERROR(IF(Indice!B6="","2XX2",YEAR(Indice!B6)),"2XX2") -> 2021 | J10: =IFERROR(YEAR(Indice!B6-365),"2XX1") -> 2020
A11: Préstamos de Entidades Locales | B11: Vencimiento | C11: Símbolo de Moneda | D11: Moneda | E11: Importe Expresado en Guaranies | F11: Tipo de Garantía | H11: Vencimiento | I11: Símbolo de Moneda | J11: Moneda | K11: Importe Expresado en Guaranies | L11: Tipo de Garantía
A12: Banco Regional S.A. | C12: PYG | D12: =IFERROR(VLOOKUP(C12,'Base de Monedas'!A:B,2,0),"") -> Guaraní | E12: 0 | J12: =IFERROR(VLOOKUP(I12,'Base de Monedas'!A:B,2,0),"") ->  | K12: 0
D13: =IFERROR(VLOOKUP(C13,'Base de Monedas'!A:B,2,0),"") ->  | J13: =IFERROR(VLOOKUP(I13,'Base de Monedas'!A:B,2,0),"") -> 
A14: Deudas bursátiles | D14: =IFERROR(VLOOKUP(C14,'Base de Monedas'!A:B,2,0),"") ->  | J14: =IFERROR(VLOOKUP(I14,'Base de Monedas'!A:B,2,0),"") -> 
A15: Programa Emision Global de Bonos G2 | C15: PYG | D15: =IFERROR(VLOOKUP(C15,'Base de Monedas'!A:B,2,0),"") -> Guaraní | E15: 0 | H15: 2020-11-18 | I15: PYG | J15: =IFERROR(VLOOKUP(I15,'Base de Monedas'!A:B,2,0),"") -> Guaraní | K15: 1000000000
A16: Programa Emision Global de Bonos G3 | C16: PYG | D16: =IFERROR(VLOOKUP(C16,'Base de Monedas'!A:B,2,0),"") -> Guaraní | E16: 0 | H16: 2021-07-15 | I16: PYG | J16: =IFERROR(VLOOKUP(I16,'Base de Monedas'!A:B,2,0),"") -> Guaraní | K16: 1000000000
A17: Programa Emision Global de Bonos G3 | B17: 2022-01-13 | C17: PYG | D17: =IFERROR(VLOOKUP(C17,'Base de Monedas'!A:B,2,0),"") -> Guaraní | E17: 1000000000
A18: Programa Emision Global de Bonos G3 | B18: 2022-07-14 | C18: PYG | D18: =IFERROR(VLOOKUP(C18,'Base de Monedas'!A:B,2,0),"") -> Guaraní | E18: 1000000000
A19: Préstamos de Entidades en el Exterior | D19: =IFERROR(VLOOKUP(C19,'Base de Monedas'!A:B,2,0),"") ->  | J19: =IFERROR(VLOOKUP(I19,'Base de Monedas'!A:B,2,0),"") -> 
A20: Nombre de la entidad financiera | D20: =IFERROR(VLOOKUP(C20,'Base de Monedas'!A:B,2,0),"") ->  | J20: =IFERROR(VLOOKUP(I20,'Base de Monedas'!A:B,2,0),"") -> 
A21: Intereses préstamos entidades financieras a pagar | D21: =IFERROR(VLOOKUP(C21,'Base de Monedas'!A:B,2,0),"") ->  | J21: =IFERROR(VLOOKUP(I21,'Base de Monedas'!A:B,2,0),"") -> 
A22: Intereses a pagar | C22: PYG | D22: =IFERROR(VLOOKUP(C22,'Base de Monedas'!A:B,2,0),"") -> Guaraní | E22: 0
A23: (-) Intereses a Devengar | C23: PYG | D23: =IFERROR(VLOOKUP(C23,'Base de Monedas'!A:B,2,0),"") -> Guaraní | E23: 0
A24: Intereses deudas Bursátiles a Pagar | D24: =IFERROR(VLOOKUP(C24,'Base de Monedas'!A:B,2,0),"") ->  | E24: 0 | J24: =IFERROR(VLOOKUP(I24,'Base de Monedas'!A:B,2,0),"") -> 
A25: Intereses a pagar PYG | B25: 2022-07-14 | C25: PYG | D25: =IFERROR(VLOOKUP(C25,'Base de Monedas'!A:B,2,0),"") -> Guaraní | E25: 1418602740 | H25: 2021-07-15 | I25: PYG | J25: =IFERROR(VLOOKUP(I25,'Base de Monedas'!A:B,2,0),"") -> Guaraní | K25: 1565712336
A26: (-) Intereses a Devengar | B26: 2022-07-14 | C26: PYG | D26: =IFERROR(VLOOKUP(C26,'Base de Monedas'!A:B,2,0),"") -> Guaraní | E26: -1385219179 | H26: 2021-09-30 | I26: PYG | J26: =IFERROR(VLOOKUP(I26,'Base de Monedas'!A:B,2,0),"") -> Guaraní | K26: -1235178077
A27: Intereses a pagar USD | E27: 0 | I27: PYG | J27: =IFERROR(VLOOKUP(I27,'Base de Monedas'!A:B,2,0),"") -> Guaraní | K27: 0
A28: (-) Intereses a Devengar | D28: =IFERROR(VLOOKUP(C28,'Base de Monedas'!A:B,2,0),"") ->  | E28: 0 | I28: PYG | J28: =IFERROR(VLOOKUP(I28,'Base de Monedas'!A:B,2,0),"") -> Guaraní | K28: 0
A29: Total | D29: =IFERROR(VLOOKUP(C29,'Base de Monedas'!A:B,2,0),"") ->  | E29: =SUM($E$12:E28) -> 2033383561 | K29: =SUM($K$12:K28) -> 2330534259
A30: No Corrientes
B31: =IFERROR(YEAR(Indice!B6),"2XX2") -> 2021 | J31: =IFERROR(YEAR(Indice!B6-365),"2XX1") -> 2020
A32: Préstamos de Entidades Locales | B32: Vencimiento | C32: Símbolo de Moneda | D32: Moneda | E32: Importe Expresado en Guaranies | F32: Tipo de garantía | H32: Vencimiento | I32: Símbolo de Moneda | J32: Moneda | K32: Importe Expresado en Guaranies | L32: Tipo de Garantía
A33: Banco Regional S.A. | D33: =IFERROR(VLOOKUP(C33,'Base de Monedas'!A:B,2,0),"") ->  | E33: 0 | I33: PYG | J33: =IFERROR(VLOOKUP(I33,'Base de Monedas'!A:B,2,0),"") -> Guaraní | K33: 0
A34: Deudas bursátiles | D34: =IFERROR(VLOOKUP(C34,'Base de Monedas'!A:B,2,0),"") ->  | J34: =IFERROR(VLOOKUP(I34,'Base de Monedas'!A:B,2,0),"") ->  | K34: 0
A35: Programa Emision Global de Bonos G3 | B35: 2023-01-12 | C35: PYG | D35: =IFERROR(VLOOKUP(C35,'Base de Monedas'!A:B,2,0),"") -> Guaraní | E35: 2000000000 | H35: 2022-01-13 | I35: PYG | J35: =IFERROR(VLOOKUP(I35,'Base de Monedas'!A:B,2,0),"") -> Guaraní | K35: 1000000000
A36: Programa Emision Global de Bonos G3 | B36: 2023-07-13 | C36: PYG | D36: =IFERROR(VLOOKUP(C36,'Base de Monedas'!A:B,2,0),"") -> Guaraní | E36: 2000000000 | H36: 2022-07-14 | I36: PYG | J36: =IFERROR(VLOOKUP(I36,'Base de Monedas'!A:B,2,0),"") -> Guaraní | K36: 1000000000
A37: Programa Emision Global de Bonos G3 | B37: 2024-01-11 | C37: PYG | D37: =IFERROR(VLOOKUP(C37,'Base de Monedas'!A:B,2,0),"") -> Guaraní | E37: 2000000000 | H37: 2023-01-12 | I37: PYG | J37: =IFERROR(VLOOKUP(I37,'Base de Monedas'!A:B,2,0),"") -> Guaraní | K37: 2000000000
A38: Programa Emision Global de Bonos G3 | B38: 2024-07-11 | C38: PYG | D38: =IFERROR(VLOOKUP(C38,'Base de Monedas'!A:B,2,0),"") -> Guaraní | E38: 2000000000 | H38: 2023-07-13 | I38: PYG | J38: =IFERROR(VLOOKUP(I38,'Base de Monedas'!A:B,2,0),"") -> Guaraní | K38: 2000000000
A39: Programa Emision Global de Bonos G3 | B39: 2025-01-09 | C39: PYG | D39: =IFERROR(VLOOKUP(C39,'Base de Monedas'!A:B,2,0),"") -> Guaraní | E39: 2000000000 | H39: 2024-01-11 | I39: PYG | J39: =IFERROR(VLOOKUP(I39,'Base de Monedas'!A:B,2,0),"") -> Guaraní | K39: 2000000000
A40: Programa Emision Global de Bonos G3 | B40: 2025-07-10 | C40: PYG | D40: =IFERROR(VLOOKUP(C40,'Base de Monedas'!A:B,2,0),"") -> Guaraní | E40: 2000000000 | H40: 2024-07-11 | I40: PYG | J40: =IFERROR(VLOOKUP(I40,'Base de Monedas'!A:B,2,0),"") -> Guaraní | K40: 2000000000
A41: Programa Emision Global de Bonos G3 | E41: 0 | H41: 2025-01-09 | I41: PYG | J41: =IFERROR(VLOOKUP(I41,'Base de Monedas'!A:B,2,0),"") -> Guaraní | K41: 2000000000
A42: Programa Emision Global de Bonos G3 | E42: 0 | H42: 2025-07-10 | I42: PYG | J42: =IFERROR(VLOOKUP(I42,'Base de Monedas'!A:B,2,0),"") -> Guaraní | K42: 2000000000
A43: Préstamos de Entidades en el Exterior | D43: =IFERROR(VLOOKUP(C43,'Base de Monedas'!A:B,2,0),"") ->  | J43: =IFERROR(VLOOKUP(I43,'Base de Monedas'!A:B,2,0),"") ->  | K43: 0
A44: Intereses préstamos entidades financieras a pagar | D44: =IFERROR(VLOOKUP(C44,'Base de Monedas'!A:B,2,0),"") ->  | J44: =IFERROR(VLOOKUP(I44,'Base de Monedas'!A:B,2,0),"") -> 
A45: Intereses a pagar | B45: 2025-07-10 | C45: PYG | D45: =IFERROR(VLOOKUP(C45,'Base de Monedas'!A:B,2,0),"") -> Guaraní | E45: 2338575342 | H45: 2025-07-10 | I45: PYG | J45: =IFERROR(VLOOKUP(I45,'Base de Monedas'!A:B,2,0),"") -> Guaraní | K45: 3757178082
A46: (-) Intereses a Devengar | B46: 2025-07-10 | C46: PYG | D46: =IFERROR(VLOOKUP(C46,'Base de Monedas'!A:B,2,0),"") -> Guaraní | E46: -2062904109 | H46: 2025-07-10 | I46: PYG | J46: =IFERROR(VLOOKUP(I46,'Base de Monedas'!A:B,2,0),"") -> Guaraní | K46: -3757178082
A47: Intereses deudas bursátiles a pagar | D47: =IFERROR(VLOOKUP(C47,'Base de Monedas'!A:B,2,0),"") ->  | J47: =IFERROR(VLOOKUP(I47,'Base de Monedas'!A:B,2,0),"") -> 
A48: Intereses a pagar | D48: =IFERROR(VLOOKUP(C48,'Base de Monedas'!A:B,2,0),"") ->  | I48: PYG | J48: =IFERROR(VLOOKUP(I48,'Base de Monedas'!A:B,2,0),"") -> Guaraní | K48: 0
A49: (-) Intereses a Devengar | D49: =IFERROR(VLOOKUP(C49,'Base de Monedas'!A:B,2,0),"") ->  | I49: PYG | J49: =IFERROR(VLOOKUP(I49,'Base de Monedas'!A:B,2,0),"") -> Guaraní | K49: 0
A50: Total | D50: =IFERROR(VLOOKUP(C50,'Base de Monedas'!A:B,2,0),"") ->  | E50: =SUM($E$33:E49) -> 12275671233 | J50: =IFERROR(VLOOKUP(I50,'Base de Monedas'!A:B,2,0),"") ->  | K50: =SUM($K$33:K49) -> 14000000000
J53: =IFERROR(VLOOKUP(I53,'Base de Monedas'!H:I,2,0),"") -> 
A55: Sra Luisa Isabel Schaerer de Pallares | D55: Sra. Maria Celeste Pallares Viveros | I55: Dr. Raul Fernando Vargas | K55: C.P. Gloria Elizabeth Flecha Benitez
A56: Presidente | D56: Vicepresidente | I56: Sindico Titular | K56: Contador

Sheet Nota 15
A1: =Indice!C1 -> GAS CORONA S.A.E.C.A. | D1: BG
A4: NO APLICA
A5: NOTA 15 – PORCION CORRIENTE DE LA DEUDA A LARGO PLAZO
B7: Expresado en guaranies
A8: Porción corriente de la deuda a largo plazo | B8: =IFERROR(IF(Indice!B6="","2XX2",YEAR(Indice!B6)),"2XX2") -> 2021 | C8: =IFERROR(YEAR(Indice!B6-365),"2XX1") -> 2020
A9: Cuentas por pagar comerciales
A10: Préstamos bancarios
A11: Bonos bursátiles
A12: Intereses bancarios a pagar
A13: Intereses bursatiles a pagar
A14: (nuevas cuentas a incluir)
A15: Total general | B15: =SUM($B$9:B14) -> 0 | C15: =SUM($C$9:C14) -> 0
A21: Sra Luisa Isabel Schaerer de Pallares | B21: Sra. Maria Celeste Pallares Viveros
A22: Presidente | B22: Vicepresidente
A30: Dr. Raul Fernando Vargas | B30: C.P. Gloria Elizabeth Flecha Benitez
A31: Sindico Titular | B31: Contador

Sheet Nota 16
A1: =Indice!C1 -> GAS CORONA S.A.E.C.A. | F1: BG
A4: NOTA 16 – REMUNERACIONES Y CARGAS SOCIALES A PAGAR
A6: Se registra como provisiones, el importe calculado sobre el salario de los colaboradores, para afrontar el
A7: pago de aguinaldo y ademas provisión para el pago de vacaciones cuyo registro y ajuste es mensual
A8: Las Cargas Sociales: El Aporte Obrero Patronal consiste en 25.5% del Salario percibido por el Trabajador
A9: y declarado por el Empleador. El pago del Aporte Obrero Patronal se paga en conjunto por el Trabajador y
A10: el Empleador conforme a la siguiente división: Trabajador: 9% Empleador: 16.5% (14% al IPS mas 2.5%
A11: asignado al SNPP y SENEPA)Es una obligacion del empleador y un derecho del trabajador y de acuerdo con la ley.
B12: Expresado en guaranies
A13: Remuneraciones y cargas sociales a pagar | B13: =IFERROR(IF(Indice!B6="","2XX2",YEAR(Indice!B6)),"2XX2") -> 2021 | C13: =IFERROR(YEAR(Indice!B6-365),"2XX1") -> 2020
A14: Sueldo y otras remuneraciones a pagar | B14: 8594059 | C14: 4710770
A15: Aportes y retenciones a pagar | B15: 230685337 | C15: 214509067
A16: Remuneraciones al personal superior a pagar | B16: 0 | C16: 0
A17: Aguinaldos a Pagar | B17: 629152955 | C17: 631080254
A18: Vacaciones a Pagar | B18: 599854553 | C18: 570747034
A19: Total | B19: =SUM($B$14:B18) -> 1468286904 | C19: =SUM($C$14:C18) -> 1421047125
A27: Sra Luisa Isabel Schaerer de Pallares | B27: Sra. Maria Celeste Pallares Viveros
A28: Presidente | B28: Vicepresidente
A36: Dr. Raul Fernando Vargas | B36: C.P. Gloria Elizabeth Flecha Benitez
A37: Sindico Titular | B37: Contador

Sheet Nota 17
A1: =Indice!C1 -> GAS CORONA S.A.E.C.A. | G1: BG
A5: NOTA 17 – IMPUESTOS A PAGAR
A7: El sistema tributario paraguayo, se apoya fuertemente en estos impuestos básicos:
A8: El Impuesto al Valor Agregado (IVA), el Impuesto a la Renta de la Empresas (IRE), el Impuesto Selectivo al Consumo (ISC)
A9: donde este ultimo se abona en el momento de los despachos de la materia prima (GLP) que utiliza Gas Corona.
A10: En el año 2009, Gas Corona fue designado por la Subsecretaria de Estado de Tributacion como Agente Retentor del IVA
A11: por lo que se expone la cuenta Retenciones IVA a Pagar.
B12: En miles de guaranies
A13: Impuestos a pagar | B13: =IFERROR(IF(Indice!B6="","2XX2",YEAR(Indice!B6)),"2XX2") -> 2021 | C13: =IFERROR(YEAR(Indice!B6-365),"2XX1") -> 2020
A14: Impuesto al Valor Agregado a pagar | B14: 2449879 | C14: 1519137
A15: Retencion Renta a Pagar | B15: 0 | C15: 15171026
A16: Retencion Proveedores IVA a Pagar | B16: 50766876 | C16: 78074852
A17: Total | B17: =SUM($B$14:B16) -> 53216755 | C17: =SUM($C$14:C16) -> 94765015
A27: Sra Luisa Isabel Schaerer de Pallares | B27: Sra. Maria Celeste Pallares Viveros
A28: Presidente | B28: Vicepresidente
A36: Dr. Raul Fernando Vargas | B36: C.P. Gloria Elizabeth Flecha Benitez
A37: Sindico Titular | B37: Contador

Sheet Nota 18
A1: =Indice!C1 -> GAS CORONA S.A.E.C.A. | D1: BG
A4: NOTA 18 - PROVISIONES
A6: Las provisiones son partidas del pasivo de Balance destinadas a recoger gastos que se van a producir
A7: en el futuro y que son ya conocidos.
B8: Expresado en guaranies
A9: Provisiones | B9: =IFERROR(IF(Indice!B6="","2XX2",YEAR(Indice!B6)),"2XX2") -> 2021 | C9: =IFERROR(YEAR(Indice!B6-365),"2XX1") -> 2020
A11: Alquileres a Pagar | B11: 0 | C11: 0
A12: Servicios Basicos a Pagar | B12: 0 | C12: 0
A13: Honorarios Profesionales a Pagar | B13: 0 | C13: 0
A14: Dividendos a Pagar | B14: 6926664835 | C14: 5903634576
A15: Provisiones Varias | B15: 1250423245 | C15: 37565229
A16: Provisiones Caja Chica | B16: 29147209 | C16: 32491930
A17: Provision Despachos | B17: 76653100 | C17: 88376697
A18: Total | B18: =SUM($B$11:B17) -> 8282888389 | C18: =SUM($C$11:C17) -> 6062068432
A28: Sra Luisa Isabel Schaerer de Pallares | C28: Sra. Maria Celeste Pallares Viveros
A29: Presidente | C29: Vicepresidente
A37: Dr. Raul Fernando Vargas | C37: C.P. Gloria Elizabeth Flecha Benitez
A38: Sindico Titular | C38: Contador

Sheet Nota 19
A1: =Indice!C1 -> GAS CORONA S.A.E.C.A. | D1: BG
A3: NOTA 19 – OTROS PASIVOS CORRIENTES y NO CORRIENTES
A4: Expresado en guaranies
A5: La previsión consiste en predecir montos o cifras en los estados financieros que pueden afectar el patrimonio de la Empresa
A6: Por lo general, estas previsiones se basan en estadísticas contables de periodos anteriores de la empresa.
A9: Corrientes | B9: =IFERROR(IF(Indice!B6="","2XX2",YEAR(Indice!B6)),"2XX2") -> 2021 | C9: =IFERROR(YEAR(Indice!B6-365),"2XX1") -> 2020 | E9: No Corrientes | F9: =IFERROR(IF(Indice!B6="","2XX2",YEAR(Indice!B6)),"2XX2") -> 2021 | G9: =IFERROR(YEAR(Indice!B6-365),"2XX1") -> 2020
A10: Retencion de IVA a pagar | B10: 0 | E10: Retencion de IVA a pagar
A11: Retencion Impuesto a la renta a Pagar | B11: 0 | C11: 0 | E11: Retencion Impuesto a la renta a Pagar
A12: Impuestos diferidos | B12: 0 | C12: 0 | E12: Impuestos diferidos
A13: Otros ingresos diferidos (detallar cuenta) | B13: 0 | C13: 0 | E13: Otros ingresos diferidos
A14: Otros Pasivos con Entidades relacionadas | B14: 0 | C14: 0 | E14: Otros Pasivos con Entidades relacionadas
A15: Previsiones para contingencias/Indemnizaciones y despidos | B15: 1713791642 | C15: 1716629332 | E15: Previsiones para contingencias/Indemnizaciones y despidos
A16: Acreedores Varios | B16: 0 | C16: 0 | E16: (nuevas cuentas a incluir)
A17: Total | B17: =SUM(B11:B16) -> 1713791642 | C17: =SUM(C11:C16) -> 1716629332 | E17: Total | F17: =SUM(F11:F16) -> 0 | G17: =SUM(G11:G16) -> 0
A23: Sra Luisa Isabel Schaerer de Pallares | B23: Sra. Maria Celeste Pallares Viveros | D23: Dr. Raul Fernando Vargas | F23: C.P. Gloria Elizabeth Flecha Benitez
A24: Presidente | B24: Vicepresidente | D24: Sindico Titular | F24: Contador

Sheet Nota 20
A2: =Indice!C1 -> GAS CORONA S.A.E.C.A. | D2: BG
A5: NOTA 20 – CAPITAL INTEGRADO
A7: El capital integrado es el capital efectivamente aportado en dinero o en bienes por los accionistas.
A9: Fecha | B9: =IFERROR(IF(Indice!B6="","2XX2",YEAR(Indice!B6)),"2XX2") -> 2021 | C9: =IFERROR(YEAR(Indice!B6-365),"2XX1") -> 2020
A10: Monto Capital Social | B10: 52000000000 | C10: 50000000000
A11: Monto Capital Integrado | B11: 50000000000 | C11: 49200000000
A12: Cantidad de Acciones | B12: 5000 | C12: 4920
A13: Valor Nominal de Acciones | B13: 10000000 | C13: 10000000
A14: Total | B14: =B12*B13 -> 50000000000 | C14: =+C11 -> 49200000000
A22: Sra Luisa Isabel Schaerer de Pallares | B22: Sra. Maria Celeste Pallares Viveros
A23: Presidente | B23: Vicepresidente
A31: Dr. Raul Fernando Vargas | B31: C.P. Gloria Elizabeth Flecha Benitez
A32: Sindico Titular | B32: Contador

Sheet Nota 21
A1: =Indice!C1 -> GAS CORONA S.A.E.C.A. | F1: BG
A4: NOTA 21 – RESERVAS
A6: Esta reserva es la denominada Reserva Legal, establecida en el artículo 91 de la Ley 1.034/83 Del Comerciante,
A7: que obliga a no distribuir el 5% de las utilidades netas del ejercicio hasta alcanzar el veinte por ciento del
A8: capital suscripto.
B9: Expresado en guaranies
B10: =IFERROR(IF(Indice!B6="","2XX2",YEAR(Indice!B6)),"2XX2") -> 2021 | C10: =IFERROR(YEAR(Indice!B6-365),"2XX1") -> 2020
A11: a Reserva de revalúo | B11: 0 | C11: 0
A15: b Reserva legal | B15: 8151731798 | C15: 6931012994
A19: c Reservas estatutarias
A23: d Reservas facultativas | B23: =+SUM($B$24:B29) -> 0 | C23: =+SUM($C$24:C29) -> 0
A24: d.1. (nuevas cuentas a incluir)
A25: d.2. (nuevas cuentas a incluir)
A36: Sra Luisa Isabel Schaerer de Pallares | D36: Sra. Maria Celeste Pallares Viveros
A37: Presidente | D37: Vicepresidente
A45: Dr. Raul Fernando Vargas | D45: C.P. Gloria Elizabeth Flecha Benitez
A46: Sindico Titular | D46: Contador

Sheet Nota 22
A1: =Indice!C1 -> GAS CORONA S.A.E.C.A. | F1: BG
A3: NO APLICA
A4: NOTA 21 – DIFERENCIA TRANSITORIA POR CONVERSION
B6: Expresado en guaranies
B7: =IFERROR(IF(Indice!B6="","2XX2",YEAR(Indice!B6)),"2XX2") -> 2021 | C7: =+IFERROR(YEAR(Indice!B6-365),"2XX1") -> 2020
A8: Diferencia transitoria por conversión
A16: Sra Luisa Isabel Schaerer de Pallares | D16: Sra. Maria Celeste Pallares Viveros
A17: Presidente | D17: Vicepresidente
A25: Dr. Raul Fernando Vargas | D25: C.P. Gloria Elizabeth Flecha Benitez
A26: Sindico Titular | D26: Contador

Sheet Nota 23
A4: =Indice!C1 -> GAS CORONA S.A.E.C.A. | F4: BG
A7: NOTA 23 – RESULTADOS ACUMULADOS
A9: El Resultado Contable es el beneficio obtenido en determinado periodo, como consecuencia de sus
A10: operaciones de naturaleza.
B11: Expresado en guaranies
B12: =IFERROR(IF(Indice!B6="","2XX2",YEAR(Indice!B6)),"2XX2") -> 2021 | C12: =+IFERROR(YEAR(Indice!B6-365),"2XX1") -> 2020
A13: Resultado de ejercicios anteriores | B13: 0 | C13: 0
A14: Resultado del ejercicio actual | B14: 5594340806 | C14: 19997379884
A15: Totales | B15: =SUM($B$13:B14) -> 5594340806 | C15: =SUM($C$13:C14) -> 19997379884
A22: Sra Luisa Isabel Schaerer de Pallares | C22: Sra. Maria Celeste Pallares Viveros
A23: Presidente | D23: Vicepresidente
A31: Dr. Raul Fernando Vargas | C31: C.P. Gloria Elizabeth Flecha Benitez
A32: Sindico Titular | C32: Contador

Sheet Nota 24
A1: =Indice!C1 -> GAS CORONA S.A.E.C.A. | F1: BG
A3: NO APLICA
A4: NOTA 24 – INTERES MINORITARIO
B6: Expresado en guaranies
B7: =IFERROR(IF(Indice!B6="","2XX2",YEAR(Indice!B6)),"2XX2") -> 2021 | C7: =+IFERROR(YEAR(Indice!B6-365),"2XX1") -> 2020
A8: Interes Minoritario
A16: Sra Luisa Isabel Schaerer de Pallares | C16: Sra. Maria Celeste Pallares Viveros
A17: Presidente | C17: Vicepresidente
A25: Dr. Raul Fernando Vargas | C25: C.P. Gloria Elizabeth Flecha Benitez
A26: Sindico Titular | C26: Contador

Sheet Nota 25
A1: =Indice!C1 -> GAS CORONA S.A.E.C.A. | E1: ER
A5: NOTA 25 – VENTAS
A7: Las ventas Contado y Credito son cuentas de naturaleza acreedora que registra los ingresos operacionales de la Sociedad.
B9: Expresado en guaranies
B10: =IFERROR(IF(Indice!B6="","2XX2",YEAR(Indice!B6)),"2XX2") -> 2021 | C10: =+IFERROR(YEAR(Indice!B6-365),"2XX1") -> 2020
A11: Ventas
A12: Ventas linea de Gas Licuadot de Petroleo
A13: Local
A14: Contado | B14: 39718788770 | C14: 37920701382
A15: Crédito | B15: 21982553194 | C15: 22429025364
A16: Exterior
A17: Contado
A18: Crédito
A19: Ventas linea de Combustibles y Derivados
A20: Local
A21: Contado | B21: 4178431928 | C21: 5262882172
A22: Crédito | B22: 139792612333 | C22: 123389060540
A23: Exterior
A24: Contado
A25: Crédito
A26: (nuevas lineas de negocio a incluir)
A27: Total | B27: =SUM($B$12:B25) -> 205672386225 | C27: =SUM($C$12:C25) -> 189001669458
A34: Sra Luisa Isabel Schaerer de Pallares | C34: Sra. Maria Celeste Pallares Viveros
A35: Presidente | C35: Vicepresidente
A43: Dr. Raul Fernando Vargas | C43: C.P. Gloria Elizabeth Flecha Benitez
A44: Sindico Titular | C44: Contador

Sheet Nota 26
A1: =Indice!C1 -> GAS CORONA S.A.E.C.A. | E1: ER
A5: NOTA 26 - COSTO DE VENTAS
A7: El costo de ventas; es el costo de adquisición de los artículos que vendieron, Los costos se valúan bajo el método
A8: del Promedio Ponderado.
B9: Expresado en guaraníes
A10: Costo de ventas | B10: =IFERROR(IF(Indice!B6="","2XX2",YEAR(Indice!B6)),"2XX2") -> 2021 | C10: =+IFERROR(YEAR(Indice!B6-365),"2XX1") -> 2020
A11: GAS LICUADO DE PETROLEO
A12: Existencia inicial del inventario | B12: 5681338324 | C12: 3586346681
A13: + Compra de bienes y servicios | B13: 36102614383 | C13: 23055390985
A14: + Costo de producción | B14: 0 | C14: 0
A15: - Existencia final de inventario | B15: -10793978688 | C15: -4294724960
A16: COMBUSTIBLES Y DERIVADOS
A17: Existencia inicial del inventario | B17: 723607621 | C17: 808577670
A18: + Compra de bienes y servicios | B18: 135571587266 | C18: 113020703388
A19: + Costo de producción
A20: - Existencia final de inventario | B20: -746017652 | C20: -738869054
A21: (nuevas lineas de negocio a incluir)
A22: Total costo de ventas | B22: =-SUM($B$11:B21) -> -166539151254 | C22: =-SUM($C$11:C21) -> -135437424710
A29: Sra Luisa Isabel Schaerer de Pallares | C29: Sra. Maria Celeste Pallares Viveros
A30: Presidente | C30: Vicepresidente
A38: Dr. Raul Fernando Vargas | C38: C.P. Gloria Elizabeth Flecha Benitez
A39: Sindico Titular | C39: Contador

Sheet Nota 27
A1: =Indice!C1 -> GAS CORONA S.A.E.C.A. | G1: ER
A4: NOTA 27 - GASTOS
A5: Expresado en Guaranies
A6: El rubro está compuesto de la siguiente forma:
B7: =IFERROR(IF(Indice!B6="","2XX2",YEAR(Indice!B6)),"2XX2") -> 2021 | E7: =+IFERROR(YEAR(Indice!B6-365),"2XX1") -> 2020
B8: Gastos de Ventas | C8: Gastos Administrativos | D8: Total | E8: Gastos de Ventas | F8: Gastos Administrativos | G8: Total
A9: Movilidad y viáticos | B9: =375136356+14950675+1112398846+376858+325570208+69368186+14581816+876398 -> 1913259343 | C9: =63484355+6450628+4146893 -> 74081876 | D9: =+C9+B9 -> 1987341219 | E9: =(1114010336-F9)+472236+316539284 -> 1383772809 | F9: =41382633+5866414 -> 47249047 | G9: =+F9+E9 -> 1431021856
A10: Gastos de alquiler | B10: 268223687 | C10: 0 | D10: =+C10+B10 -> 268223687 | E10: 308639984 | G10: =+F10+E10 -> 308639984
A11: Computación y redes | B11: 0 | C11: 9727273 | D11: 9727273 | F11: 16310546 | G11: 16310546
A12: Gastos por servicios basicos | B12: =546203699-C12 -> 205700128 | C12: 340503571 | D12: 546203699 | E12: =575458124-F12 -> 218683291 | F12: 356774833 | G12: 575458124
A13: Honorarios profesionales y asesoramiento | B13: 0 | C13: 1660337243 | D13: 1660337243 | F13: 1339157776 | G13: 1339157776
A14: Impuestos y tasas | B14: 46717836 | C14: 2276723499 | D14: 2323441335 | E14: 55181619 | F14: 2180287744 | G14: 2235469363
A15: Gastos de reparación y mantenimiento | B15: =(2920448125-C15)+145780057 -> 2947542626 | C15: 118685556 | D15: 3066228182 | E15: =(1869296129-F15)+112079353+175295795+16804588+41936364+16920409 -> 2089590179 | F15: 142742459 | G15: 2232332638
A16: Gastos del personal y capacitación | B16: 0 | C16: 14109462 | D16: 14109462 | F16: 15433791 | G16: 15433791
A17: Seguros pagados | B17: 0 | C17: 459690754 | D17: 459690754 | E17: 0 | F17: 419317549 | G17: 419317549
A18: Otros gastos de operación | B18: 334353711 | C18: 0 | D18: 334353711 | E18: 186698802 | G18: 186698802
A19: Remuneraciones de administradores, directores, síndicos y consejo de vigilancia | B19: 0 | C19: 860000000 | D19: 860000000 | E19: 0 | F19: 877500000 | G19: 877500000
A20: Sueldos y Jornales | B20: =8993684482-C20 -> 5918953485 | C20: 3074730997 | D20: 8993684482 | E20: =8950033628-F20 -> 5827712919 | F20: 3122320709 | G20: 8950033628
A21: Contribuciones Sociales | B21: =1335845604-C21 -> 921671111 | C21: 414174493 | D21: 1335845604 | E21: =1294502214-F21 -> 867342943 | F21: 427159271 | G21: 1294502214
A22: Gastos de Publicidad y Propaganda | B22: =479148461-C22 -> 37278676 | C22: 441869785 | D22: 479148461 | E22: =338003371-F22 -> 46433595 | F22: 291569776 | G22: 338003371
A23: Intereses, multas y recargos impositivos | B23: 0 | C23: 0 | D23: 0 | G23: 0
A24: Intereses a bancos e instituciones financieras | B24: 0 | C24: 0 | D24: 0 | G24: 0
A25: Depreciación bienes de uso | B25: =4311736462-C25 -> 3727355590 | C25: 584380872 | D25: 4311736462 | E25: =5452089776-F25 -> 4801736439 | F25: 650353337 | G25: 5452089776
A26: Amortizaciones Varios | B26: 3297996781 | C26: 0 | D26: 3297996781 | E26: 4859954921 | G26: 4859954921
A27: Amortización activos intangibles | B27: 0 | C27: 0 | D27: 0 | G27: 0
A28: Previsiones | B28: 0 | C28: 0 | D28: 0 | G28: 0
A29: Sumistros e Insumos | B29: =301420996+11252725+7030133+8775194+25585647+5181970+5164084+5350821 -> 369761570 | C29: =130633911+216544+4967240+1239185 -> 137056880 | D29: 506818450 | E29: =338906703+13009095+7952816+7324166+40061373+1053456+23480+3180952+2526199+3556234 -> 417594474 | F29: =63398569+1043077+137557+3358100+2329858 -> 70267161 | G29: 487861635
A30: Seguridad | B30: 336285209 | C30: 874084510 | D30: 1210369719 | E30: 315012823 | F30: 835370893 | G30: 1150383716
A31: Seguridad Ocupacional | B31: =166242288+117159172+6273532+12259667 -> 301934659 | C31: =68990551+9323565 -> 78314116 | D31: 380248775 | E31: =90147605+18490176+38778250+117102775+9021951+4490957 -> 278031714 | F31: =16039149+1171333 -> 17210482 | G31: 295242196
A32: Seguridad Sanitaria | B32: 221449089 | C32: =48284315+2914394 -> 51198709 | D32: 272647798 | E32: 142728122 | F32: 77483244 | G32: 220211366
A33: Gastos Varios | B33: =16866598+20037552+1800002+826688+53694079 -> 93224919 | C33: =41883757+1265457+450909+23239093+57013226+1636364+102053190+19000000+1332000 -> 247873996 | D33: 341098915 | E33: =4130768+4232711+13324470+437507090+5524545 -> 464719584 | F33: =60590726+16685843+614545+32963636+45005273+2727272+753000+57921372+72781053+201096264+1332000+81768540 -> 574239524 | G33: 1038959108
A34: Servicios Varios | B34: =3002724+69813638+62578732+142457956+6383636+17305454 -> 301542140 | C34: =121500000+37863635+4765210+203800000+81142116+11976616+22034899+3636364 -> 486718840 | D34: 788260980 | E34: =71422467+1300309+18950787+40946436+37018183+280454552+8869138 -> 458961872 | F34: =115750000+5256431+182863637+20000000+11047806 -> 334917874 | G34: 793879746
A35: Total | B35: =SUM($B$9:B34) -> 21243250560 | C35: =SUM($C$9:C34) -> 12204262432 | D35: =SUM($D$9:D34) -> 33447512992 | E35: =+SUM($E$9:E34) -> 22722796090 | F35: =+SUM($F$9:F34) -> 11795666016 | G35: =SUM($G$9:G34) -> 34518462106
A38: Sra Luisa Isabel Schaerer de Pallares | B38: Sra. Maria Celeste Pallares Viveros | D38: Dr. Raul Fernando Vargas | F38: C.P. Gloria Elizabeth Flecha Benitez
A39: Presidente | B39: Vicepresidente | D39: Sindico Titular | F39: Contador

Sheet Nota 28
A1: =Indice!C1 -> GAS CORONA S.A.E.C.A. | E1: ER
A4: Nota 28 - Otros Ingresos y gastos operativos
A6: Expresado en guaraníes
A8: Otros ingresos | B8: =IFERROR(IF(Indice!B6="","2XX2",YEAR(Indice!B6)),"2XX2") -> 2021 | C8: =+IFERROR(YEAR(Indice!B6-365),"2XX1") -> 2020 | E8: Otros gastos | F8: =IFERROR(IF(Indice!B6="","2XX2",YEAR(Indice!B6)),"2XX2") -> 2021 | G8: =+IFERROR(YEAR(Indice!B6-365),"2XX1") -> 2020
A9: Ventas de Envases | B9: 361801645 | C9: 331980000
A10: Ventas Repuestos | B10: 143217241 | C10: 157390912
A11: Venta Materiales | B11: 0 | C11: 0
A12: Venta Servicios | B12: 47919319 | C12: 41376222
A13: Ingresos Varios | B13: =592435861+15051002 -> 607486863 | C13: =1178306797+9756949 -> 1188063746
A14: Ventas Bienes de Uso | B14: 111818181 | C14: 0
A15: Total | B15: =SUM($B$9:B14) -> 1272243249 | C15: =SUM($C$9:C14) -> 1718810880 | E15: Total | F15: =SUM($F$9:F14) -> 0 | G15: =SUM($G$9:G14) -> 0
A22: Sra Luisa Isabel Schaerer de Pallares | B22: Sra. Maria Celeste Pallares Viveros | E22: Dr. Raul Fernando Vargas | H22: C.P. Gloria Elizabeth Flecha Benitez
A23: Presidente | B23: Vicepresidente | E23: Sindico Titular | H23: Contador

Sheet Nota 29
A1: =Indice!C1 -> GAS CORONA S.A.E.C.A. | E1: ER
A5: NOTA 29 - INGRESOS Y GASTOS FINANCIEROS NETOS
A6: Expresado en Guaranies
A8: Ingresos Financieros netos | B8: =IFERROR(IF(Indice!B6="","2XX2",YEAR(Indice!B6)),"2XX2") -> 2021 | C8: =+IFERROR(YEAR(Indice!B6-365),"2XX1") -> 2020 | E8: Gastos Financieros netos | F8: =IFERROR(IF(Indice!B6="","2XX2",YEAR(Indice!B6)),"2XX2") -> 2021 | G8: =+IFERROR(YEAR(Indice!B6-365),"2XX1") -> 2020
A9: Intereses En caja de Ahorro | B9: 0 | C9: 0 | E9: Comosion Descuentos Cheques | F9: 4150000 | G9: 28400000
A10: Diferencia de Cambio | B10: 587680775 | C10: 771590786 | E10: Gastos Financieros | F10: =45540091+120699 -> 45660790 | G10: =63959687+127033 -> 64086720
B11: 0 | C11: 0 | E11: Intereses Pagados | F11: 318172057 | G11: 563989811
B12: 0 | C12: 0 | E12: Diferencia de Cambio | F12: =381527642+63096078 -> 444623720 | G12: 331793644
B13: 0 | C13: 0 | E13: Intereses Bonos | F13: 1138698630 | G13: 550534249
A14: Total ingresos financieros | B14: =SUM($B9:B13) -> 587680775 | C14: =SUM($C9:C13) -> 771590786 | E14: Total gastos financieros | F14: =SUM($F9:F13) -> 1951305197 | G14: =SUM($G9:G13) -> 1538804424
A21: Sra Luisa Isabel Schaerer de Pallares | B21: Sra. Maria Celeste Pallares Viveros | E21: Dr. Raul Fernando Vargas | F21: C.P. Gloria Elizabeth Flecha Benitez
A22: Presidente | B22: Vicepresidente | E22: Sindico Titular | F22: Contador

Sheet Nota 30
A1: =Indice!C1 -> GAS CORONA S.A.E.C.A. | E1: ER
A3: NO APLICA
A4: Nota 34 - Resultado de inversiones en asociadas
A5: Expresado en Guaranies
A8: Resultado de inversiones en asociadas | B8: =IFERROR(IF(Indice!B6="","2XX2",YEAR(Indice!B6)),"2XX2") -> 2021 | C8: =+IFERROR(YEAR(Indice!B6-365),"2XX1") -> 2020
A9: (Detallar cuenta)
A13: Total | B13: =SUM($B9:B12) -> 0 | C13: =SUM($C9:C12) -> 0
A18: Sra Luisa Isabel Schaerer de Pallares | C18: Sra. Maria Celeste Pallares Viveros
A19: Presidente | C19: Vicepresidente
A27: Dr. Raul Fernando Vargas | C27: C.P. Gloria Elizabeth Flecha Benitez
A28: Sindico Titular | C28: Contador

Sheet Nota 31
A1: =Indice!C1 -> GAS CORONA S.A.E.C.A. | E1: ER
A3: NO APLICA
A4: Nota 31 - Resultado participación minoritaria
A5: Expresado en Guaranies
A8: Resultado participación minoritaria | B8: =IFERROR(IF(Indice!B6="","2XX2",YEAR(Indice!B6)),"2XX2") -> 2021 | C8: =+IFERROR(YEAR(Indice!B6-365),"2XX1") -> 2020
A12: Total | B12: =SUM($B9:B11) -> 0 | C12: =SUM($C9:C11) -> 0
A17: Sra Luisa Isabel Schaerer de Pallares | C17: Sra. Maria Celeste Pallares Viveros
A18: Presidente | C18: Vicepresidente
A26: Dr. Raul Fernando Vargas | C26: C.P. Gloria Elizabeth Flecha Benitez
A27: Sindico Titular | C27: Contador

Sheet Nota 32
A1: =Indice!C1 -> GAS CORONA S.A.E.C.A. | E1: ER
A3: NO APLICA
A4: Nota 32 - IMPUESTO A LA RENTA
A5: Expresado en Guaranies
B7: =IFERROR(IF(Indice!B6="","2XX2",YEAR(Indice!B6)),"2XX2") -> 2021 | C7: =+IFERROR(YEAR(Indice!B6-365),"2XX1") -> 2020
A8: Impuesto a la renta
A14: Total | B14: =SUM($B8:B13) -> 0 | C14: =SUM($C8:C13) -> 0
A21: Sra Luisa Isabel Schaerer de Pallares | C21: Sra. Maria Celeste Pallares Viveros
A22: Presidente | C22: Vicepresidente
A30: Dr. Raul Fernando Vargas | C30: C.P. Gloria Elizabeth Flecha Benitez
A31: Sindico Titular | C31: Contador

Sheet Nota 33
A1: =Indice!C1 -> GAS CORONA S.A.E.C.A. | E1: ER
A3: NO APLICA
A4: Nota 33 - Resultado extraordinario neto de impuesto a la renta
A5: Expresado en Guaranies
B7: =IFERROR(IF(Indice!B6="","2XX2",YEAR(Indice!B6)),"2XX2") -> 2021 | C7: =+IFERROR(YEAR(Indice!B6-365),"2XX1") -> 2020
A8: Conceptos
A9: (Detallar)
A15: Total | B15: =SUM($B8:B14) -> 0 | C15: =SUM($C8:C14) -> 0
A21: Sra Luisa Isabel Schaerer de Pallares | C21: Sra. Maria Celeste Pallares Viveros
A22: Presidente | C22: Vicepresidente
A30: Dr. Raul Fernando Vargas | C30: C.P. Gloria Elizabeth Flecha Benitez
A31: Sindico Titular | C31: Contador

Sheet Nota 34
A1: =Indice!C1 -> GAS CORONA S.A.E.C.A. | E1: ER
A3: NO APLICA
A4: Nota 34 - Resultado sobre actividades discontinuadas neto de impuesto a la renta
A5: Expresado en Guaranies
A7: Resultado sobre actividades discontinuadas neto de impuesto a la renta | B7: =IFERROR(IF(Indice!B6="","2XX2",YEAR(Indice!B6)),"2XX2") -> 2021 | C7: =+IFERROR(YEAR(Indice!B6-365),"2XX1") -> 2020
A9: (nueva cuenta a incluir)
A10: Subtotal
A11: - Impuesto a la renta
A12: Total | B12: =SUM($B8:B11) -> 0 | C12: =SUM($C8:C11) -> 0
A17: Sra Luisa Isabel Schaerer de Pallares | C17: Sra. Maria Celeste Pallares Viveros
A18: Presidente | C18: Vicepresidente
A26: Dr. Raul Fernando Vargas | C26: C.P. Gloria Elizabeth Flecha Benitez
A27: Sindico Titular | C27: Contador

Sheet Nota 35
A1: =Indice!C1 -> GAS CORONA S.A.E.C.A. | E1: ER
A4: NOTA 35- UTILIDAD (PÉRDIDA) NETA DEL AÑO Y POR ACCION ORDINARIA
A5: La Sociedad calcula la utilidad (pérdida) neta por acción sobre la base de la utilidad (pérdida) del año y … acciones ordinarias (aclarar las características de las acciones) de valor nominal G/ …cada una con derecho a … voto por acción (aclarar el derecho de voto que tiene cada tipo de acción).
B7: =IFERROR(IF(Indice!B6="","2XX2",YEAR(Indice!B6)),"2XX2") -> 2021 | C7: =+IFERROR(YEAR(Indice!B6-365),"2XX1") -> 2020
A8: Cantidad de Acciones Ordinarias en Circulación | B8: 5000 | C8: 4920
A9: Utilidad Neta | B9: 5594340806 | C9: 19997379884
A10: Utilidad Neta por Acción Ordinaria | B10: =IFERROR(B9/B8,0) -> 1118868.161 | C10: =IFERROR(C9/C8,0) -> 4064508.107
A17: Sra Luisa Isabel Schaerer de Pallares | B17: Sra. Maria Celeste Pallares Viveros | D17: Dr. Raul Fernando Vargas | F17: C.P. Gloria Elizabeth Flecha Benitez
A18: Presidente | B18: Vicepresidente | D18: Sindico Titular | F18: Contador

Sheet Nota 36
A1: =Indice!C1 -> GAS CORONA S.A.E.C.A. | E1: Indice
A3: NO APLICA
A4: NOTA 36 - ACTIVOS GRAVADOS
A6: Los siguientes bienes de propiedad de la Sociedad han sido hipotecados y prendados en garantía de obligaciones financieras.
A8: =IFERROR("Al "&DAY(Indice!B6)&" de "&VLOOKUP(MONTH(Indice!B6),Indice!S:T,2,0)&" de "&YEAR(Indice!B6-365),"Al dia... de mes… de año 2XX1…") -> Al 30 de Septiembre de 2020
A9: Tipo de Activo | B9: Datos del activo gravado | C9: Tipo de garantía | D9: Importe (indicar moneda) | E9: A favor de
A15: =IFERROR("Al "&DAY(Indice!B6)&" de "&VLOOKUP(MONTH(Indice!B6),Indice!S:T,2,0)&" de "&YEAR(Indice!B6-1),"Al dia... de mes… de año 2XX2…") -> Al 30 de Septiembre de 2021
A16: Tipo de Activo | B16: Datos del activo gravado | C16: Tipo de garantía | D16: Importe (indicar moneda) | E16: A favor de
A26: Sra Luisa Isabel Schaerer de Pallares | B26: Sra. Maria Celeste Pallares Viveros | D26: Dr. Raul Fernando Vargas | F26: C.P. Gloria Elizabeth Flecha Benitez
A27: Presidente | B27: Vicepresidente | D27: Sindico Titular | F27: Contador

Sheet Nota 37
A1: =Indice!C1 -> GAS CORONA S.A.E.C.A. | E1: Indice
A3: NO APLICA
A4: NOTA 37 - CONTINGENCIAS Y COMPROMISOS
A6: =IFERROR("Al "&DAY(Indice!B6)&" de "&VLOOKUP(MONTH(Indice!B6),Indice!S:T,2,0)&" de "&YEAR(Indice!B6-1)&" no existen situaciones contingentes, ni reclamos que pudieran resultar en la generación de obligaciones para la Sociedad adicionales a las que se presentan en estos estados financieros.","Al … de …………... 20X2 no existen situaciones contingentes, ni reclamos que pudieran resultar en la generación de obligaciones para la Sociedad adicionales a las que se presentan en estos estados financieros.") -> Al 30 de Septiembre de 2021 no existen situaciones contingentes, ni reclamos que pudieran resultar en la generación de obligaciones para la Sociedad adicionales a las que se presentan en estos estados financieros.
A14: Sra Luisa Isabel Schaerer de Pallares | B14: Sra. Maria Celeste Pallares Viveros | D14: Dr. Raul Fernando Vargas | F14: C.P. Gloria Elizabeth Flecha Benitez
A15: Presidente | B15: Vicepresidente | D15: Sindico Titular | F15: Contador

Sheet Nota 38
A1: =Indice!C1 -> GAS CORONA S.A.E.C.A. | D1: Índice
A3: NO APLICA
A4: NOTA 38 - IMPUESTO DIFERIDO
A6: Al … de …........... 20X2 la Sociedad constituyó una provisión para impuesto a la renta de Guaraníes …... (Al … de …...............20X1: Guaraníes …....) / (La Sociedad no ha constituido provisión para impuesto a la renta, debido a que a esa fecha la misma generó renta imponible que fue compensada con quebrantos impositivos acumulados a esa fecha).
A7: La Sociedad contabiliza el impuesto a la renta por el método de lo diferido, método del pasivo. El mencionado método establece la determinación de activos o pasivos impositivos diferidos netos basados en las diferencias temporales y temporarias, con cargo a la línea Impuesto a la renta del Estado de resultados.
A9: El siguiente cuadro detalla las diferencias temporales a la tasa del impuesto a los efectos de determinación del impuesto diferido:
B11: =IFERROR(IF(Indice!B6="","2XX2",YEAR(Indice!B6)),"2XX2") -> 2021 | C11: =+IFERROR(YEAR(Indice!B6-365),"2XX1") -> 2020
A12: Activos y pasivos impositivos diferidos:
A13: Caja y Bancos
A14: Inversiones
A15: Previsión para deudores incobrables
A16: Bienes de uso
A17: Activos intangibles
A18: Previsión del pasivo
A19: Deudas comerciales y bancarias
A20: Bienes de cambio
A21: Sub - total
A22: Previsión para impuestos diferidos netos
A23: Total activo/pasivo impositivo diferido neto antes de quebrantos
A24: Quebranto impositivo
A25: Total
A29: Sra Luisa Isabel Schaerer de Pallares | B29: Sra. Maria Celeste Pallares Viveros | D29: Dr. Raul Fernando Vargas | F29: C.P. Gloria Elizabeth Flecha Benitez
A30: Presidente | B30: Vicepresidente | D30: Sindico Titular | F30: Contador

Sheet Nota 39
A1: =Indice!C1 -> GAS CORONA S.A.E.C.A. | E1: Indice
A5: NOTA 39 - HECHOS POSTERIORES
A9: Entre la fecha de cierre del ejercicio y la fecha de preparación de estos estados financieros, no han ocurrido hechos significativos de carácter financiero o de otra índole que afecten la situación patrimonial o financiera o los resultados de la Sociedad al 30 de SETIEMBRE de 2021.
A15: Sra Luisa Isabel Schaerer de Pallares | B15: Sra. Maria Celeste Pallares Viveros | D15: Dr. Raul Fernando Vargas | F15: C.P. Gloria Elizabeth Flecha Benitez
A16: Presidente | B16: Vicepresidente | D16: Sindico Titular | F16: Contador

Sheet Nota 40
A1: =Indice!C1 -> GAS CORONA S.A.E.C.A. | C1: Indice
A5: NOTA 40 - SALDOS Y TRANSACCIONES CON PARTES RELACIONADAS
A6: Expresado en Guaranies
B10: =IFERROR(IF(Indice!B6="","2XX2",YEAR(Indice!B6)),"2XX2") -> 2021 | C10: =+IFERROR(YEAR(Indice!B6-365),"2XX1") -> 2020
A11: ACTIVO
A12: Inversiones temporales
A13: Cuentas a cobrar comerciales | B13: 4991541986 | C13: 4741357062
A14: Otros créditos
A15: Total activo | B15: =B13 -> 4991541986 | C15: =C13 -> 4741357062
A16: PASIVO
A17: Cuentas por pagar comerciales | B17: 11000000 | C17: =453000+181200 -> 634200
A18: Préstamos a corto plazo
A19: Provisiones
A20: Préstamos a largo plazo
A21: Otros pasivos
A22: Total pasivo | B22: =B17 -> 11000000 | C22: =C17 -> 634200
B26: =IFERROR(IF(Indice!B6="","2XX2",YEAR(Indice!B6)),"2XX2") -> 2021 | C26: =+IFERROR(YEAR(Indice!B6-365),"2XX1") -> 2020
A27: Costo de ventas | B27: 0 | C27: 0
A28: Compras | B28: 0 | C28: 0
B29: 0 | C29: 0
A30: Gastos administrativos | B30: 0 | C30: 0
A31: Honorarios por servicios | B31: 0 | C31: 0
A32: Otros | B32: 0 | C32: 0
A33: Gastos financieros | B33: 0 | C33: 0
A34: Intereses pagados por préstamos | B34: 0 | C34: 0
A40: Sra Luisa Isabel Schaerer de Pallares | C40: Sra. Maria Celeste Pallares Viveros
A41: Presidente | C41: Vicepresidente
A49: Dr. Raul Fernando Vargas | C49: C.P. Gloria Elizabeth Flecha Benitez
A50: Sindico Titular | C50: Contador

Sheet Base de Monedas
A1: PYG | B1: Guaraní | C1: Índice
A2: USD | B2: Dólar estadounidense
A3: EUR | B3: Euro
A4: AED | B4: Dírham de los Emiratos Árabes Unidos
A5: AFN | B5: Afgani
A6: ALL | B6: Lek
A7: AMD | B7: Dram armenio
A8: ANG | B8: Florín antillano neerlandés
A9: AOA | B9: Kwanza
A10: ARS | B10: Peso argentino
A11: AUD | B11: Dólar australiano
A12: AWG | B12: Florín arubeño
A13: AZN | B13: Manat azerbaiyano
A14: BAM | B14: Marco convertible
A15: BBD | B15: Dólar de Barbados
A16: BDT | B16: Taka
A17: BGN | B17: Lev búlgaro
A18: BHD | B18: Dinar bareiní
A19: BIF | B19: Franco de Burundi
A20: BMD | B20: Dólar bermudeño
A21: BND | B21: Dólar de Brunéi
A22: BOB | B22: Boliviano
A23: BOV | B23: MVDOL
A24: BRL | B24: Real brasileño
A25: BSD | B25: Dólar bahameño
A26: BTN | B26: Ngultrum
A27: BWP | B27: Pula
A28: BYN | B28: Rublo bielorruso
A29: BZD | B29: Dólar beliceño
A30: CAD | B30: Dólar canadiense
A31: CDF | B31: Franco congoleño
A32: CHE | B32: Euro WIR
A33: CHF | B33: Franco suizo
A34: CHW | B34: Franco WIR
A35: CLF | B35: Unidad de fomento
A36: CLP | B36: Peso chileno
A37: CNY | B37: Yuan chino
A38: COP | B38: Peso colombiano
A39: COU | B39: Unidad de valor real
A40: CRC | B40: Colón costarricense
A41: CUC | B41: Peso convertible
A42: CUP | B42: Peso cubano
A43: CVE | B43: Escudo caboverdiano
A44: CZK | B44: Corona checa
A45: DJF | B45: Franco yibutiano
A46: DKK | B46: Corona danesa
A47: DOP | B47: Peso dominicano
A48: DZD | B48: Dinar argelino
A49: EGP | B49: Libra egipcia
A50: ERN | B50: Nakfa
A51: ETB | B51: Birr etíope
A52: FJD | B52: Dólar fiyiano
A53: FKP | B53: Libra malvinense
A54: GBP | B54: Libra esterlina
A55: GEL | B55: Lari
A56: GHS | B56: Cedi ghanés
A57: GIP | B57: Libra de Gibraltar
A58: GMD | B58: Dalasi
A59: GNF | B59: Franco guineano
A60: GTQ | B60: Quetzal
A61: GYD | B61: Dólar guyanés
A62: HKD | B62: Dólar de Hong Kong
A63: HNL | B63: Lempira
A64: HRK | B64: Kuna
A65: HTG | B65: Gourde
A66: HUF | B66: Forinto
A67: IDR | B67: Rupia indonesia
A68: ILS | B68: Nuevo shéquel israelí
A69: INR | B69: Rupia india
A70: IQD | B70: Dinar iraquí
A71: IRR | B71: Rial iraní
A72: ISK | B72: Corona islandesa
A73: JMD | B73: Dólar jamaiquino
A74: JOD | B74: Dinar jordano
A75: JPY | B75: Yen
A76: KES | B76: Chelín keniano
A77: KGS | B77: Som
A78: KHR | B78: Riel
A79: KMF | B79: Franco comorense
A80: KPW | B80: Won norcoreano
A81: KRW | B81: Won
A82: KWD | B82: Dinar kuwaití
A83: KYD | B83: Dólar de las Islas Caimán
A84: KZT | B84: Tenge
A85: LAK | B85: Kip
A86: LBP | B86: Libra libanesa
A87: LKR | B87: Rupia de Sri Lanka
A88: LRD | B88: Dólar liberiano
A89: LSL | B89: Loti
A90: LYD | B90: Dinar libio
A91: MAD | B91: Dírham marroquí
A92: MDL | B92: Leu moldavo
A93: MGA | B93: Ariary malgache
A94: MKD | B94: Denar
A95: MMK | B95: Kyat
A96: MNT | B96: Tugrik
A97: MOP | B97: Pataca
A98: MRU | B98: Uguiya
A99: MUR | B99: Rupia de Mauricio
A100: MVR | B100: Rufiyaa
A101: MWK | B101: Kwacha
A102: MXN | B102: Peso mexicano
A103: MXV | B103: Unidad de Inversión (UDI) mexicana
A104: MYR | B104: Ringgit malayo
A105: MZN | B105: Metical mozambiqueño
A106: NAD | B106: Dólar namibio
A107: NGN | B107: Naira
A108: NIO | B108: Córdoba
A109: NOK | B109: Corona noruega
A110: NPR | B110: Rupia nepalí
A111: NZD | B111: Dólar neozelandés
A112: OMR | B112: Rial omaní
A113: PAB | B113: Balboa
A114: PEN | B114: Sol
A115: PGK | B115: Kina
A116: PHP | B116: Peso filipino
A117: PKR | B117: Rupia pakistaní
A118: PLN | B118: Złoty
A119: QAR | B119: Riyal qatarí
A120: RON | B120: Leu rumano
A121: RSD | B121: Dinar serbio
A122: RUB | B122: Rublo ruso
A123: RWF | B123: Franco ruandés
A124: SAR | B124: Riyal saudí
A125: SBD | B125: Dólar de las Islas Salomón
A126: SCR | B126: Rupia seychelense
A127: SDG | B127: Dinar sudanés
A128: SEK | B128: Corona sueca
A129: SGD | B129: Dólar de Singapur
A130: SHP | B130: Libra de Santa Elena
A131: SLL | B131: Leone
A132: SOS | B132: Chelín somalí
A133: SRD | B133: Dólar surinamés
A134: SSP | B134: Libra sursudanesa
A135: STN | B135: Dobra
A136: SVC | B136: Colon Salvadoreño
A137: SYP | B137: Libra siria
A138: SZL | B138: Lilangeni
A139: THB | B139: Baht
A140: TJS | B140: Somoni tayiko
A141: TMT | B141: Manat turcomano
A142: TND | B142: Dinar tunecino
A143: TOP | B143: Paʻanga
A144: TRY | B144: Lira turca
A145: TTD | B145: Dólar de Trinidad y Tobago
A146: TWD | B146: Nuevo dólar taiwanés
A147: TZS | B147: Chelín tanzano
A148: UAH | B148: Grivna
A149: UGX | B149: Chelín ugandés
A150: USN | B150: Dólar estadounidense (Siguiente día)
A151: UYI | B151: Peso en Unidades Indexadas (Uruguay)
A152: UYU | B152: Peso uruguayo
A153: UYW | B153: Unidad Previsional
A154: UZS | B154: Som uzbeko
A155: VES7​ | B155: Bolívar soberano
A156: VND | B156: Dong vietnamita
A157: VUV | B157: Vatu
A158: WST | B158: Tala
A159: XAF | B159: Franco CFA de África Central
A160: XAG | B160: Plata (una onza troy)
A161: XAU | B161: Oro (una onza troy)
A162: XBA | B162: Unidad compuesta europea (EURCO) (Unidad del mercados de bonos)
A163: XBB | B163: Unidad Monetaria europea (E.M.U.-6) (Unidad del mercado de bonos)
A164: XBC | B164: Unidad europea de cuenta 9 (E.U.A.-9) (Unidad del mercado de bonos)
A165: XBD | B165: Unidad europea de cuenta 17 (E.U.A.-17) (Unidad del mercado de bonos)
A166: XCD | B166: Dólar del Caribe Oriental
A167: XDR | B167: Derechos especiales de giro
A168: XOF | B168: Franco CFA de África Occidental
A169: XPD | B169: Paladio (una onza troy)
A170: XPF | B170: Franco CFP
A171: XPT | B171: Platino (una onza troy)
A172: XSU | B172: SUCRE
A173: XTS | B173: Reservado para pruebas
A174: XUA | B174: Unidad de cuenta BAD
A175: XXX | B175: Sin divisa
A176: YER | B176: Rial yemení
A177: ZAR | B177: Rand
A178: ZMW | B178: Kwacha zambiano
A179: ZWL | B179: Dólar zimbabuense

Sheet Hoja1
